{"text_format":"1","workbook":"xlsx","n_sheets":19,"sheets":["Instructions","PDE3123","School Facility","Branch Campus","Remote Facility","Surety","Director Qualifications","Instructor Qualifications","Admission Reps","Repository","Program Profile","Equipment","Enrollment Agreement","Catalog","CDL Program","Advertising","Student Records","Documents","Submission"],"not_rendered":{"charts":0,"images":0,"macros":0,"external_links":0,"defined_names":14,"comments":0,"pivot_tables":0},"unopened":[],"bounds":{"document_bytes":16777216,"sheet_cells":100000,"rows_first":2000,"rows_last":500,"rows_between":2000,"halvings":0,"cell_chars":16384,"cell_head_chars":4096},"cells_cut":0,"cells_raw":0,"read":"whole","date_system":"1900"}

{"sheet":"Instructions","index":0,"n_rows":56,"n_cols":3,"rows_kept":56,"cut":false,"hidden":false,"merged":[[20,1,20,4],[21,1,21,2],[22,1,22,3],[23,1,23,3]]}
["Compliance Audit Self-Study"]
["Pennsylvania State Board of Private Licensed Schools"]
[]
["Do not attempt to unlock or modify this application.  You will be required to submit a new application if the submitted application is unlocked, unprotected, edited, or modified in any way."]
["If you experience issues with the application or require assistance, call the Division at (717)783-8228."]
[]
["Board staff communicates with school personnel during the audit process and not any external consultants contracted to assist with the process."]
[]
["The Pennsylvania Department of Education, Division of Law Enforcement Education and Trade Schools, on behalf of the State Board of Private Licensed Schools, "]
["conducts compliance audits and site visits of licensed/registered schools, remote sites, and branch sites to verify compliance with statute, regulations, and Board policies."]
[]
["Complete this self-study in its entirety and submit within five business days prior to the school's scheduled compliance audit. "]
[]
["Compliance Audits will now be completed by the school submitting the Compliance Audit Self-Study, in addition to either a virtual or in-person site visit."]
[]
["If a virtual site visit is conducted, a follow-up in-person physical site visit may be conducted."]
[]
["IMPORTANT - PLEASE READ"]
[]
["Carefully review the Statute, Regulations, and Board Policy Memos at:"]
[null,"Private Licensed Schools Act 174 of 1986"]
[null,"Act 110 of 2019"]
[null,"22 Pa. Code Chapter 73"]
[null,"Board Policy Memos"]
[]
["Complete all shaded boxes.  Information may be added in the following ways:"]
[null,"1. Type directly in the shaded box."]
[null,"2. Copy and paste text into the shaded box."]
[null,"3. Embed documents as an icon."]
[null,null,"On the insert tab, choose Object.  Select Create from File, check to display as an icon.  Browse for your document."]
[null,null,"NOTE:  Always embed the document as an icon.  You should see a symbol (icon) in the application rather than the entire document. "]
[null,null,"If the entire document appears, you have not embedded the document as an icon."]
[]
[null,"The application cannot exceed 200MB.  If your application is larger than 200MB, you may have included information that was not requested or you have embedded large files such as .jpg files.  "]
[null,"Change the format of any large files and eliminate anything that was not requested.  "]
[]
["File Naming Conventions"]
[null,"Begin the file name with the school name or abbreviation - if multiple campuses, note location."]
[null,"Do not use punctuation in the file name.  "]
[null,"NOTE:  When resubmitting revisions to the application, it is absolutely essential to use the exact same filename.  "]
[null,"NOTE:  When resubmitting revisions to the application, it is absolutely essential that the same registered user upload the revised application to SharePoint."]
[null,"Do not change the filename in any way.  Do not even add a number or date to indicate a new version."]
[]
["Right to Know"]
[null,"The Division of Law Enforcement Education and Trade Schools does not have the authority under the new Right to Know Law to determine that a specific document contains confidential or proprietary information.  "]
[null,"Any document submitted to the Division of Law Enforcement Education and Trade Schools may be considered public information that must be disclosed. This includes information in this application. "]
[null,"If a school wishes to have a document protected, the school must provide a written statement signed by a representative of the school indicating that the document contains confidential proprietary information or a trade secret.  "]
[null,"This office will notify the school if a request is submitted under Right to Know that includes such a document.  "]
[null,"The school will have the opportunity to provide input on the release of the document.  "]
[null,"Generally, the Department will deny a Right to Know request for information that the school has deemed to be confidential proprietary information.  "]
[null,"However, if a denial is appealed to the Office of Open Records (OOR), the school will be notified and can intervene and appeal to Commonwealth Court if the OOR rules that the information must be disclosed.  "]
[null,"If the school does not intervene and the OOR says the information must be disclosed, the Department will likely disclose it rather than filing an appeal with Commonwealth Court. "]
[]
["END OF INSTRUCTIONS - PROCEED TO NEXT WORKSHEET TAB"]
[]
["Updated:","2023-12-17"]

{"sheet":"PDE3123","index":1,"n_rows":138,"n_cols":18,"rows_kept":138,"cut":false,"hidden":false,"merged":[[37,1,37,5],[15,9,15,10],[18,2,18,7],[20,2,20,7],[20,9,20,10],[23,3,23,4],[27,2,27,7],[27,9,27,10],[30,2,30,7],[30,9,30,10],[33,3,33,4],[65,9,65,13],[38,1,38,6],[40,1,44,2],[46,2,46,7],[48,2,48,7],[50,2,50,7],[52,2,52,7],[54,2,54,7],[57,9,57,13],[59,9,59,13],[61,9,61,13],[63,9,63,13],[109,1,113,6],[67,9,67,13],[69,9,69,13],[71,9,71,13],[73,9,73,13],[75,9,75,13],[77,9,77,13],[91,1,91,8],[100,1,100,7],[79,9,79,13],[81,9,81,13],[83,9,83,13],[115,2,115,7],[115,14,115,15],[117,2,117,7],[117,14,117,15],[119,2,119,7],[119,14,119,15],[135,2,135,7],[135,14,135,15],[135,18,135,23],[125,1,129,6],[131,2,131,7],[131,14,131,15],[131,18,131,23],[133,2,133,7],[133,14,133,15],[133,18,133,23]]}
["Compliance Audit Self-Study"]
["Pennsylvania State Board of Private Licensed Schools"]
[]
[null,"Name of School:"]
[null,null,"Board-approved name, as it appears on license/registration"]
[]
[null,"Address of School:"]
[]
[]
[]
[]
[null,null,"City, State and Zip Code",null,null,null,null,null,null,null,"`"]
[]
["Certification of the person completing this application:"]
[]
[null,"Name:",null,null,null,null,null,null,"Date:"]
[null,null,"By placing my name above, I certify with my electronic signature that the information contained in this application is accurate."]
[]
[null,"Affiliation with the school:"]
[]
[null,"E-mail:",null,null,null,null,null,null,"Phone:"]
[null,null,"The Division will communicate with the school using this e-mail address. Be sure that this e-mail address is valid and correct and that it is checked regularly."]
[]
[null,null,"Date of Certification:"]
[]
["Certification of the school's Director:"]
[]
[null,"Name:",null,null,null,null,null,null,"Date:"]
[null,null,"By placing my name above, I certify with my electronic signature that the information contained in this application is accurate."]
[]
[null,"E-mail:",null,null,null,null,null,null,"Phone:"]
[null,null,"The Division will communicate with the school using this e-mail address. Be sure that this e-mail address is valid and correct and that it is checked regularly."]
[]
[null,null,"Date of Certification:"]
[]
[null,"In accordance with Private Licensed Schools Memorandum #71, the school Director is required to attend a New Director Seminar within 6 months of the date of hire or promotion into the position.  "]
[null,"Embed the Director's certificate or letter of attendance to verify this requirement has been fulfilled."]
[null,"New Director Seminar Dates"]
[null,"New Director Seminar Registration Form"]
[]
[]
[]
[]
[]
[]
[]
[null,"Alternate School Names:"]
[]
[]
[]
[]
[]
[]
[]
[]
[]
[]
[null,"Acting Directors:",null,null,null,null,null,null,"E-mail:"]
[]
[null,null,null,null,null,null,null,null,"E-mail:"]
[]
[null,null,null,null,null,null,null,null,"E-mail:"]
[]
[null,null,null,null,null,null,null,null,"E-mail:"]
[]
[null,null,null,null,null,null,null,null,"E-mail:"]
[]
[null,null,null,null,null,null,null,null,"E-mail:"]
[]
[null,null,null,null,null,null,null,null,"E-mail:"]
[]
[null,null,null,null,null,null,null,null,"E-mail:"]
[]
[null,null,null,null,null,null,null,null,"E-mail:"]
[]
[null,null,null,null,null,null,null,null,"E-mail:"]
[]
[null,null,null,null,null,null,null,null,"E-mail:"]
[]
[null,null,null,null,null,null,null,null,"E-mail:"]
[]
[null,null,null,null,null,null,null,null,"E-mail:"]
[]
[null,null,null,null,null,null,null,null,"E-mail:"]
[]
["Higher Education Annual Institutional Reporting"]
[]
["Article XX-G of the Public School Code, Act 55 of 2022"]
["Sexual Violence, Dating Violence, Domestic Violence, and Stalking Education, Prevention, and Response"]
["Required by all higher education institutions, including all Private Licensed Schools."]
[]
[null,"Division of Higher Education, Access, and Equity - Act 55 of 2022 - Article XX-G"]
[]
[null,"By checking this box, the school certifies that it has received, read, and understands this information."]
[null,"For additional information regarding the Article or reporting requirements, schools may email RA-HigherEducation@pa.gov."]
[]
["Article XX-J of the Public School Code, Act 16 of 2019"]
["Sexual Violence Policy and Anonymous Online Reporting System"]
["Required by all higher education institutions, including Private Licensed Schools offering a specialized associate degree."]
[]
[null,"Division of Higher Education, Access, and Equity - Act 16 of 2019 - Article XX-J"]
[]
[null,"By checking this box, the school certifies that it has received, read, and understands this information."]
[null,"For additional information regarding the Article or reporting requirements, schools may email RA-HigherEducation@pa.gov."]
[]
["Accreditation - School"]
[]
["If the school is accredited, provide the most recent compliance letter(s) from the accreditor(s)."]
["Embed document(s) below:"]
[]
[]
[]
[]
[]
[]
[null,"Name of accreditor:",null,null,null,null,null,null,null,null,"Accreditation expiration date:",null,null,"Accreditation status:"]
[]
[null,"Name of accreditor:",null,null,null,null,null,null,null,null,"Accreditation expiration date:",null,null,"Accreditation status:"]
[]
[null,"Name of accreditor:",null,null,null,null,null,null,null,null,"Accreditation expiration date:",null,null,"Accreditation status:"]
[]
["Accreditation - Programmatic"]
[]
["If the school has programmatic accreditation for any of its Board-approved programs, please provide the most recent compliance letters from the accreditors."]
["Embed document below:"]
[]
[]
[]
[]
[]
[]
[null,"Name of accreditor:",null,null,null,null,null,null,null,null,"Accreditation expiration date:",null,null,"Accreditation status:",null,null,null,"Approved program:"]
[]
[null,"Name of accreditor:",null,null,null,null,null,null,null,null,"Accreditation expiration date:",null,null,"Accreditation status:",null,null,null,"Approved program:"]
[]
[null,"Name of accreditor:",null,null,null,null,null,null,null,null,"Accreditation expiration date:",null,null,"Accreditation status:",null,null,null,"Approved program:"]
[]
["END OF PDE3123 - PROCEED TO NEXT WORKSHEET TAB"]

{"sheet":"School Facility","index":2,"n_rows":35,"n_cols":1,"rows_kept":35,"cut":false,"hidden":false,"merged":[[8,1,13,2],[17,1,22,2],[27,1,32,2]]}
["Compliance Audit Self-Study"]
["Pennsylvania State Board of Private Licensed Schools"]
[]
["School Facility:"]
[]
["Embed a copy of the facility floor plan with square footage indicated for all instructional space(s)."]
["On the floor plan, indicate the purpose for the space and show major equipment."]
[]
[]
[]
[]
[]
[]
[]
[]
["Embed a copy of the facility's certificate of occupancy."]
[]
[]
[]
[]
[]
[]
[]
[]
["Embed a copy of the current signed agreement, which includes the terms of the arrangement, for the school's facility."]
["If the property is owned by the school, provide supporting evidence of facility ownership."]
[]
[]
[]
[]
[]
[]
[]
[]
["END OF FACILITY - PROCEED TO NEXT WORKSHEET TAB"]

{"sheet":"Branch Campus","index":3,"n_rows":242,"n_cols":9,"rows_kept":242,"cut":false,"hidden":false,"merged":[[224,9,224,13],[226,9,226,13],[197,1,202,2],[215,2,215,7],[217,2,217,7],[220,9,220,13],[222,9,222,13],[143,9,143,13],[145,9,145,13],[147,9,147,13],[149,9,149,13],[43,1,48,2],[61,2,61,7],[63,2,63,7],[66,9,66,13],[68,9,68,13],[70,9,70,13],[72,9,72,13],[101,1,106,2],[110,1,115,2],[120,1,125,2],[138,2,138,7],[140,2,140,7],[91,2,91,6],[93,2,93,6],[95,2,95,6],[14,2,14,6],[16,2,16,6],[18,2,18,6],[24,1,29,2],[33,1,38,2],[52,1,57,2],[129,1,134,2],[206,1,211,2],[168,2,168,6],[170,2,170,6],[172,2,172,6],[178,1,183,2],[187,1,192,2]]}
["Compliance Audit Self-Study"]
["Pennsylvania State Board of Private Licensed Schools"]
[]
["If the school offers Board-approved programs (also offered at the school's main campus) at another facility, that facility must be approved as a branch campus.  "]
[]
["Each location requires a facility floor plan or map, certificate of occupancy/zoning permit, a signed site agreement or proof of site ownership, and evidence of surety for the location."]
[]
["If the institution does not utilize branch locations, please proceed to the next tab. "]
["Please contact the Division if more space is needed to list all branch campuses."]
[]
["Branch Campus:"]
[]
[null,"Name of Branch:"]
[]
[null,"Address of Branch:"]
[]
[]
[]
[]
[null,null,"City, State and Zip Code"]
[]
["Embed a copy of the facility floor plan with square footage indicated for all instructional space(s)."]
["On the floor plan, indicate the purpose for the space and show major equipment."]
[]
[]
[]
[]
[]
[]
[]
[]
["Embed a copy of the facility's certificate of occupancy."]
[]
[]
[]
[]
[]
[]
[]
[]
["Embed a copy of the current signed agreement, which includes the terms of the arrangement, for the branch facility."]
["If the property is owned by the school, provide supporting evidence of facility ownership."]
[]
[]
[]
[]
[]
[]
[]
[]
["Embed a copy of the bond rider evidencing coverage of the branch location."]
[]
[]
[]
[]
[]
[]
[]
[]
[null,"Branch School Director:"]
[]
[null,"Phone #:"]
[]
[null,"E-mail:"]
[null,null,"The Division will communicate with the school using this e-mail address. Be sure that this e-mail address is valid and correct and that it is checked regularly."]
[]
[null,"Acting Directors:",null,null,null,null,null,null,"E-mail:"]
[]
[null,null,null,null,null,null,null,null,"E-mail:"]
[]
[null,null,null,null,null,null,null,null,"E-mail:"]
[]
[null,null,null,null,null,null,null,null,"E-mail:"]
[]
["Board-approved programs offered at this branch campus:"]
[null,"Note: Programs offered at the branch campus must also be offered at the main campus."]
[]
[null,1,null,null,null,null,null,null,6]
[]
[null,2,null,null,null,null,null,null,7]
[]
[null,3,null,null,null,null,null,null,8]
[]
[null,4,null,null,null,null,null,null,9]
[]
[null,5,null,null,null,null,null,null,10]
[]
["Branch Campus:"]
[]
[null,"Name of Branch:"]
[]
[null,"Address of Branch:"]
[]
[]
[]
[]
[null,null,"City, State and Zip Code"]
[]
["Embed a copy of the facility floor plan with square footage indicated for all instructional space(s)."]
["On the floor plan, indicate the purpose for the space and show major equipment."]
[]
[]
[]
[]
[]
[]
[]
[]
["Embed a copy of the facility's certificate of occupancy."]
[]
[]
[]
[]
[]
[]
[]
[]
["Embed a copy of the current signed agreement, which includes the terms of the arrangement, for the branch facility."]
["If the property is owned by the school, provide supporting evidence of facility ownership."]
[]
[]
[]
[]
[]
[]
[]
[]
["Embed a copy of the bond rider evidencing coverage of the branch location."]
[]
[]
[]
[]
[]
[]
[]
[]
[null,"Branch School Director:"]
[]
[null,"Phone #:"]
[]
[null,"E-mail:"]
[null,null,"The Division will communicate with the school using this e-mail address. Be sure that this e-mail address is valid and correct and that it is checked regularly."]
[]
[null,"Acting Directors:",null,null,null,null,null,null,"E-mail:"]
[]
[null,null,null,null,null,null,null,null,"E-mail:"]
[]
[null,null,null,null,null,null,null,null,"E-mail:"]
[]
[null,null,null,null,null,null,null,null,"E-mail:"]
[]
["Board-approved programs offered at this branch campus:"]
[null,"Note: Programs offered at the branch campus must also be offered at the main campus."]
[]
[null,1,null,null,null,null,null,null,6]
[]
[null,2,null,null,null,null,null,null,7]
[]
[null,3,null,null,null,null,null,null,8]
[]
[null,4,null,null,null,null,null,null,9]
[]
[null,5,null,null,null,null,null,null,10]
[]
["Branch Campus:"]
[]
[null,"Name of Branch:"]
[]
[null,"Address of Branch:"]
[]
[]
[]
[]
[null,null,"City, State and Zip Code"]
[]
["Embed a copy of the facility floor plan with square footage indicated for all instructional space(s)."]
["On the floor plan, indicate the purpose for the space and show major equipment."]
[]
[]
[]
[]
[]
[]
[]
[]
["Embed a copy of the facility's certificate of occupancy."]
[]
[]
[]
[]
[]
[]
[]
[]
["Embed a copy of the current signed agreement, which includes the terms of the arrangement, for the branch facility."]
["If the property is owned by the school, provide supporting evidence of facility ownership."]
[]
[]
[]
[]
[]
[]
[]
[]
["Embed a copy of the bond rider evidencing coverage of the branch location."]
[]
[]
[]
[]
[]
[]
[]
[]
[null,"Branch School Director:"]
[]
[null,"Phone #:"]
[]
[null,"E-mail:"]
[null,null,"The Division will communicate with the school using this e-mail address. Be sure that this e-mail address is valid and correct and that it is checked regularly."]
[]
[null,"Acting Directors:",null,null,null,null,null,null,"E-mail:"]
[]
[null,null,null,null,null,null,null,null,"E-mail:"]
[]
[null,null,null,null,null,null,null,null,"E-mail:"]
[]
[null,null,null,null,null,null,null,null,"E-mail:"]
[]
["Board-approved programs offered at this branch campus:"]
[null,"Note: Programs offered at the branch campus must also be offered at the main campus."]
[]
[null,1,null,null,null,null,null,null,6]
[]
[null,2,null,null,null,null,null,null,7]
[]
[null,3,null,null,null,null,null,null,8]
[]
[null,4,null,null,null,null,null,null,9]
[]
[null,5,null,null,null,null,null,null,10]
[]
["END OF BRANCH CAMPUS - PROCEED TO NEXT WORKSHEET TAB"]

{"sheet":"Remote Facility","index":4,"n_rows":461,"n_cols":3,"rows_kept":461,"cut":false,"hidden":false,"merged":[[452,1,457,2],[340,1,345,2],[396,1,401,2],[60,1,65,2],[299,2,299,6],[297,2,297,6],[183,2,183,6],[181,2,181,6],[139,2,139,6],[137,2,137,6],[135,2,135,6],[131,2,131,6],[129,2,129,6],[127,2,127,6],[125,2,125,6],[284,1,289,2],[228,1,233,2],[172,1,177,2],[116,1,121,2],[13,2,13,6],[15,2,15,6],[17,2,17,6],[19,2,19,6],[32,1,37,2],[23,2,23,6],[25,2,25,6],[27,2,27,6],[144,1,149,2],[153,1,158,2],[163,1,168,2],[107,1,112,2],[41,1,46,2],[51,1,56,2],[88,1,93,2],[97,1,102,2],[69,2,69,6],[71,2,71,6],[73,2,73,6],[75,2,75,6],[79,2,79,6],[81,2,81,6],[83,2,83,6],[237,2,237,6],[239,2,239,6],[241,2,241,6],[243,2,243,6],[256,1,261,2],[247,2,247,6],[249,2,249,6],[251,2,251,6],[185,2,185,6],[187,2,187,6],[200,1,205,2],[209,1,214,2],[219,1,224,2],[195,2,195,6],[191,2,191,6],[193,2,193,6],[321,1,326,2],[424,1,429,2],[433,1,438,2],[443,1,448,2],[417,2,417,6],[419,2,419,6],[359,2,359,6],[331,1,336,2],[349,2,349,6],[351,2,351,6],[353,2,353,6],[355,2,355,6],[361,2,361,6],[363,2,363,6],[415,2,415,6],[409,2,409,6],[265,1,270,2],[275,1,280,2],[293,2,293,6],[295,2,295,6],[312,1,317,2],[303,2,303,6],[305,2,305,6],[307,2,307,6],[411,2,411,6],[368,1,373,2],[377,1,382,2],[387,1,392,2],[405,2,405,6],[407,2,407,6]]}
["Compliance Audit Self-Study"]
["Pennsylvania State Board of Private Licensed Schools"]
[]
["If the school conducts any hands-on portion of program coursework at another location, such as a driving range for a trucking program, a clinical site for a nurse aid program, or an off-site laboratory, that location must be approved as a remote location.  "]
[null,"Note: Only hands-on portions of a program may be taught at a remote location. Theory instruction is to be taught at the main campus. Full programs may not be offered out of a remote location.  "]
[]
["Each location requires a facility floor plan or map, certificate of occupancy/zoning permit, a signed site agreement or proof of site ownership, and evidence of surety for the location."]
[]
["If the institution does not utilize remote locations, please proceed to the next tab. "]
["Please contact the Division if more space is needed to list all remote locations."]
[]
["Remote Facility:"]
[]
[null,"Name of Remote Site:"]
[]
[null,"Address of Remote Site:"]
[]
[]
[]
[]
[null,null,"City, State and Zip Code"]
[]
["Program(s) this site is used as a remote location for:"]
[]
[]
[]
[]
[]
[]
["Embed a copy of the facility floor plan with square footage indicated for all instructional space(s)."]
["On the floor plan, indicate the purpose for the space and show major equipment."]
[]
[]
[]
[]
[]
[]
[]
[]
["Embed a copy of the facility's certificate of occupancy or the location's zoning permit."]
[]
[]
[]
[]
[]
[]
[]
[]
["Embed a copy of the current signed agreement, which includes the terms of the arrangement, for the remote location."]
["If the property is owned by the school, provide supporting evidence of ownership."]
[]
[]
[]
[]
[]
[]
[]
[]
["Embed a copy of the bond rider evidencing coverage of the remote location."]
[]
[]
[]
[]
[]
[]
[]
[]
["Remote Facility:"]
[]
[null,"Name of Remote Site:"]
[]
[null,"Address of Remote Site:"]
[]
[]
[]
[]
[null,null,"City, State and Zip Code"]
[]
["Program(s) this site is used as a remote location for:"]
[]
[]
[]
[]
[]
[]
["Embed a copy of the facility floor plan with square footage indicated for all instructional space(s)."]
["On the floor plan, indicate the purpose for the space and show major equipment."]
[]
[]
[]
[]
[]
[]
[]
[]
["Embed a copy of the facility's certificate of occupancy or the location's zoning permit."]
[]
[]
[]
[]
[]
[]
[]
[]
["Embed a copy of the current signed agreement, which includes the terms of the arrangement, for the remote location."]
["If the property is owned by the school, provide supporting evidence of ownership."]
[]
[]
[]
[]
[]
[]
[]
[]
["Embed a copy of the bond rider evidencing coverage of the remote location."]
[]
[]
[]
[]
[]
[]
[]
[]
["Remote Facility:"]
[]
[null,"Name of Remote Site:"]
[]
[null,"Address of Remote Site:"]
[]
[]
[]
[]
[null,null,"City, State and Zip Code"]
[]
["Program(s) this site is used as a remote location for:"]
[]
[]
[]
[]
[]
[]
["Embed a copy of the facility floor plan with square footage indicated for all instructional space(s)."]
["On the floor plan, indicate the purpose for the space and show major equipment."]
[]
[]
[]
[]
[]
[]
[]
[]
["Embed a copy of the facility's certificate of occupancy or the location's zoning permit."]
[]
[]
[]
[]
[]
[]
[]
[]
["Embed a copy of the current signed agreement, which includes the terms of the arrangement, for the remote location."]
["If the property is owned by the school, provide supporting evidence of ownership."]
[]
[]
[]
[]
[]
[]
[]
[]
["Embed a copy of the bond rider evidencing coverage of the remote location."]
[]
[]
[]
[]
[]
[]
[]
[]
["Remote Facility:"]
[]
[null,"Name of Remote Site:"]
[]
[null,"Address of Remote Site:"]
[]
[]
[]
[]
[null,null,"City, State and Zip Code"]
[]
["Program(s) this site is used as a remote location for:"]
[]
[]
[]
[]
[]
[]
["Embed a copy of the facility floor plan with square footage indicated for all instructional space(s)."]
["On the floor plan, indicate the purpose for the space and show major equipment."]
[]
[]
[]
[]
[]
[]
[]
[]
["Embed a copy of the facility's certificate of occupancy or the location's zoning permit."]
[]
[]
[]
[]
[]
[]
[]
[]
["Embed a copy of the current signed agreement, which includes the terms of the arrangement, for the remote location."]
["If the property is owned by the school, provide supporting evidence of ownership."]
[]
[]
[]
[]
[]
[]
[]
[]
["Embed a copy of the bond rider evidencing coverage of the remote location."]
[]
[]
[]
[]
[]
[]
[]
[]
["Remote Facility:"]
[]
[null,"Name of Remote Site:"]
[]
[null,"Address of Remote Site:"]
[]
[]
[]
[]
[null,null,"City, State and Zip Code"]
[]
["Program(s) this site is used as a remote location for:"]
[]
[]
[]
[]
[]
[]
["Embed a copy of the facility floor plan with square footage indicated for all instructional space(s)."]
["On the floor plan, indicate the purpose for the space and show major equipment."]
[]
[]
[]
[]
[]
[]
[]
[]
["Embed a copy of the facility's certificate of occupancy or the location's zoning permit."]
[]
[]
[]
[]
[]
[]
[]
[]
["Embed a copy of the current signed agreement, which includes the terms of the arrangement, for the remote location."]
["If the property is owned by the school, provide supporting evidence of ownership."]
[]
[]
[]
[]
[]
[]
[]
[]
["Embed a copy of the bond rider evidencing coverage of the remote location."]
[]
[]
[]
[]
[]
[]
[]
[]
["Remote Facility:"]
[]
[null,"Name of Remote Site:"]
[]
[null,"Address of Remote Site:"]
[]
[]
[]
[]
[null,null,"City, State and Zip Code"]
[]
["Program(s) this site is used as a remote location for:"]
[]
[]
[]
[]
[]
[]
["Embed a copy of the facility floor plan with square footage indicated for all instructional space(s)."]
["On the floor plan, indicate the purpose for the space and show major equipment."]
[]
[]
[]
[]
[]
[]
[]
[]
["Embed a copy of the facility's certificate of occupancy or the location's zoning permit."]
[]
[]
[]
[]
[]
[]
[]
[]
["Embed a copy of the current signed agreement, which includes the terms of the arrangement, for the remote location."]
["If the property is owned by the school, provide supporting evidence of ownership."]
[]
[]
[]
[]
[]
[]
[]
[]
["Embed a copy of the bond rider evidencing coverage of the remote location."]
[]
[]
[]
[]
[]
[]
[]
[]
["Remote Facility:"]
[]
[null,"Name of Remote Site:"]
[]
[null,"Address of Remote Site:"]
[]
[]
[]
[]
[null,null,"City, State and Zip Code"]
[]
["Program(s) this site is used as a remote location for:"]
[]
[]
[]
[]
[]
[]
["Embed a copy of the facility floor plan with square footage indicated for all instructional space(s)."]
["On the floor plan, indicate the purpose for the space and show major equipment."]
[]
[]
[]
[]
[]
[]
[]
[]
["Embed a copy of the facility's certificate of occupancy or the location's zoning permit."]
[]
[]
[]
[]
[]
[]
[]
[]
["Embed a copy of the current signed agreement, which includes the terms of the arrangement, for the remote location."]
["If the property is owned by the school, provide supporting evidence of ownership."]
[]
[]
[]
[]
[]
[]
[]
[]
["Embed a copy of the bond rider evidencing coverage of the remote location."]
[]
[]
[]
[]
[]
[]
[]
[]
["Remote Facility:"]
[]
[null,"Name of Remote Site:"]
[]
[null,"Address of Remote Site:"]
[]
[]
[]
[]
[null,null,"City, State and Zip Code"]
[]
["Program(s) this site is used as a remote location for:"]
[]
[]
[]
[]
[]
[]
["Embed a copy of the facility floor plan with square footage indicated for all instructional space(s)."]
["On the floor plan, indicate the purpose for the space and show major equipment."]
[]
[]
[]
[]
[]
[]
[]
[]
["Embed a copy of the facility's certificate of occupancy or the location's zoning permit."]
[]
[]
[]
[]
[]
[]
[]
[]
["Embed a copy of the current signed agreement, which includes the terms of the arrangement, for the remote location."]
["If the property is owned by the school, provide supporting evidence of ownership."]
[]
[]
[]
[]
[]
[]
[]
[]
["Embed a copy of the bond rider evidencing coverage of the remote location."]
[]
[]
[]
[]
[]
[]
[]
[]
[]
["END OF REMOTE FACILITY - PROCEED TO NEXT WORKSHEET TAB"]

{"sheet":"Surety","index":5,"n_rows":51,"n_cols":11,"rows_kept":51,"cut":false,"hidden":false,"merged":[[26,7,30,8],[37,2,37,4],[39,2,39,4],[41,2,41,4],[44,2,48,6],[18,2,18,4],[21,2,21,4],[23,2,23,4],[26,1,30,2],[26,4,30,5]]}
["Compliance Audit Self-Study"]
["Pennsylvania State Board of Private Licensed Schools"]
[]
["Failure by a school to provide the following documentation to Board staff within 30 days of surety alteration, for any reason, will subject the school to enforcement actions for the violation of regulatory mandates. "]
["Enforcement may include imposition of a civil penalty and/or suspension or revocation of school license/registration:"]
[]
[null,"1) a new original (and materially complete) surety bond, "]
[null,"2) a copy of any additional or revised bond riders, or "]
[null,"3) evidence of new or updated PTAF coverage."]
[]
["Surety must cover the school's main location address, as well as the addresses of all branch campuses and remote locations which is evidenced by a bond rider."]
["Surety must meet the required minimum surety level, according to the school's gross tuition, in accordance with § 73.54 (b)."]
[]
["Surety Bond"]
[]
["Embed a current paid receipt from the insurance company that indicates your bond number, the bond amount, and the policy effective dates."]
["If a paid receipt from the insurance company is not available, embed a letter from the insurance company that indicates your bond number, bond amount, and the policy effective dates."]
[]
[null,"Bond Number:",null,null,null,null,null,null,null,null,"Private Licensed School Surety Bond PDE-1619 (12/10)"]
[]
[null,null,null,null,null,null,null,null,null,null,"Surety bonds must utilize the PDE-1619 (12/10)."]
[null,"Bond Amount:",null,null,null,null,null,null,null,null,"Original bonds must be signed in ink and include the school's raised corporate seal and witness signature."]
[null,null,null,null,null,null,null,null,null,null,"Original bonds must be signed using one of the specified titles indicated at the signature line."]
[null,"Effective From/To Dates:",null,null,null,null,null,null,null,null,"Original bonds must be signed with at least two signatures, using two different titles, even if being signed by one sole proprietor."]
[null,null,null,null,null,null,null,null,null,null,"Original surety bond documents must be mailed to our offices, with all attachments, including the Power of Attorney."]
[null,"Embed the required documentation."]
[null,null,null,null,null,null,null,null,null,null,"Pennsylvania Department of Education"]
[null,null,null,null,null,null,null,null,null,null,"Division of Law Enforcement Education and Trade Schools"]
[null,null,null,null,null,null,null,null,null,null,"State Board of Private Licensed Schools"]
[null,null,null,null,null,null,null,null,null,null,"607 South Drive, Floor 3E"]
[null,null,null,null,null,null,null,null,null,null,"Harrisburg, PA 17120 "]
[null,"Surety Bond",null,null,"Bond Rider",null,null,"Letter of Continuation"]
[]
["PTAF (Pennsylvania Training Assurance Fund) "]
[]
["Embed the letter from the organization which indicates that surety is currently in effect."]
[]
[null,"Surety Number:"]
[]
[null,"Surety Amount:"]
[]
[null,"Effective From/To Dates:"]
[]
[null,null,"Embed the required documentation."]
[]
[]
[]
[]
[]
[]
["END OF SURETY - PROCEED TO NEXT WORKSHEET TAB"]

{"sheet":"Director Qualifications","index":6,"n_rows":232,"n_cols":13,"rows_kept":232,"cut":false,"hidden":false,"merged":[[224,2,229,8],[224,12,229,18],[3,0,3,6],[211,2,211,6],[211,12,211,16],[214,2,219,8],[214,12,219,18],[221,2,221,6],[180,12,185,18],[190,3,190,8],[192,2,192,6],[195,2,200,8],[204,2,209,8],[7,2,7,6],[10,2,15,8],[29,2,29,6],[32,2,37,8],[29,12,29,16],[32,12,37,18],[22,2,27,8],[18,2,18,4],[19,2,19,5],[39,2,39,6],[39,12,39,16],[42,2,47,8],[42,12,47,18],[49,2,49,6],[49,12,49,16],[52,2,57,8],[52,12,57,18],[59,2,59,6],[59,12,59,16],[62,2,67,8],[62,12,67,18],[69,2,69,6],[69,12,69,16],[72,2,77,8],[72,12,77,18],[104,2,104,6],[102,3,102,8],[79,2,79,6],[79,12,79,16],[82,2,87,8],[82,12,87,18],[89,2,89,6],[89,12,89,16],[92,2,97,8],[92,12,97,18],[107,2,112,8],[123,2,123,6],[123,12,123,16],[126,2,131,8],[126,12,131,18],[133,2,133,6],[116,2,121,8],[136,2,141,8],[136,12,141,18],[146,3,146,8],[170,2,175,8],[170,12,175,18],[177,2,177,6],[180,2,185,8],[148,2,148,6],[151,2,156,8],[160,2,165,8],[167,2,167,6],[167,12,167,16]]}
["Compliance Audit Self-Study"]
["Pennsylvania State Board of Private Licensed Schools"]
[]
["Director or Acting Director Qualifications Form PDE-340 (Excel)"]
[]
["Main Campus:"]
[]
["School Director:",null,{"$f":"'PDE3123'!C16","v":0}]
[]
[null,null,"Embed the Director's completed PDE340 and supporting documentation here. "]
[]
[]
[]
[]
[]
[]
[]
[null,null,"In accordance with Private Licensed Schools Memorandum #71, the school Director is required to attend a New Director Seminar within 6 months of the date of hire or promotion into the position.  "]
[null,null,"New Director Seminar Dates"]
[null,null,"New Director Seminar Registration Form "]
[]
[null,null,"Please embed the Director's certificate or letter of attendance to verify this requirement has been fulfilled."]
[]
[]
[]
[]
[]
[]
[]
["Acting Director :",null,{"$f":"'PDE3123'!C58","v":0},null,null,null,null,null,null,null,"Acting Director :",null,{"$f":"'PDE3123'!C60","v":0}]
[]
[null,null,"Embed the Acting Director's completed PDE340 and supporting documentation here. ",null,null,null,null,null,null,null,null,null,"Embed the Acting Director's completed PDE340 and supporting documentation here. "]
[]
[]
[]
[]
[]
[]
[]
["Acting Director :",null,{"$f":"'PDE3123'!C62","v":0},null,null,null,null,null,null,null,"Acting Director :",null,{"$f":"'PDE3123'!C64","v":0}]
[]
[null,null,"Embed the Acting Director's completed PDE340 and supporting documentation here. ",null,null,null,null,null,null,null,null,null,"Embed the Acting Director's completed PDE340 and supporting documentation here. "]
[]
[]
[]
[]
[]
[]
[]
["Acting Director :",null,{"$f":"'PDE3123'!C66","v":0},null,null,null,null,null,null,null,"Acting Director :",null,{"$f":"'PDE3123'!C68","v":0}]
[]
[null,null,"Embed the Acting Director's completed PDE340 and supporting documentation here. ",null,null,null,null,null,null,null,null,null,"Embed the Acting Director's completed PDE340 and supporting documentation here. "]
[]
[]
[]
[]
[]
[]
[]
["Acting Director :",null,{"$f":"'PDE3123'!C70","v":0},null,null,null,null,null,null,null,"Acting Director :",null,{"$f":"'PDE3123'!C72","v":0}]
[]
[null,null,"Embed the Acting Director's completed PDE340 and supporting documentation here. ",null,null,null,null,null,null,null,null,null,"Embed the Acting Director's completed PDE340 and supporting documentation here. "]
[]
[]
[]
[]
[]
[]
[]
["Acting Director :",null,{"$f":"'PDE3123'!C74","v":0},null,null,null,null,null,null,null,"Acting Director :",null,{"$f":"'PDE3123'!C76","v":0}]
[]
[null,null,"Embed the Acting Director's completed PDE340 and supporting documentation here. ",null,null,null,null,null,null,null,null,null,"Embed the Acting Director's completed PDE340 and supporting documentation here. "]
[]
[]
[]
[]
[]
[]
[]
["Acting Director :",null,{"$f":"'PDE3123'!C78","v":0},null,null,null,null,null,null,null,"Acting Director :",null,{"$f":"'PDE3123'!C80","v":0}]
[]
[null,null,"Embed the Acting Director's completed PDE340 and supporting documentation here. ",null,null,null,null,null,null,null,null,null,"Embed the Acting Director's completed PDE340 and supporting documentation here. "]
[]
[]
[]
[]
[]
[]
[]
["Acting Director :",null,{"$f":"'PDE3123'!C82","v":0},null,null,null,null,null,null,null,"Acting Director :",null,{"$f":"'PDE3123'!C84","v":0}]
[]
[null,null,"Embed the Acting Director's completed PDE340 and supporting documentation here. ",null,null,null,null,null,null,null,null,null,"Embed the Acting Director's completed PDE340 and supporting documentation here. "]
[]
[]
[]
[]
[]
[]
[]
["Branch Campus:"]
["If the institution does not utilize branch campuses, please proceed to the next tab. "]
[]
["Name of Branch Campus:",null,null,{"$f":"'Branch Campus'!C13","v":0}]
[]
["School Director:",null,{"$f":"'Branch Campus'!C60","v":0}]
[]
[null,null,"Embed the Director's completed PDE340 and supporting documentation here. "]
[]
[]
[]
[]
[]
[]
[]
[null,null,"In accordance with Private Licensed Schools Memorandum #71, the school Director is required to attend a New Director Seminar within 6 months of the date of hire or promotion into the position.  "]
[null,null,"Please embed the Director's certificate or letter of attendance to verify this requirement has been fulfilled."]
[]
[]
[]
[]
[]
[]
[]
["Acting Director :",null,{"$f":"'Branch Campus'!C67","v":0},null,null,null,null,null,null,null,"Acting Director :",null,{"$f":"'Branch Campus'!C69","v":0}]
[]
[null,null,"Embed the Acting Director's completed PDE340 and supporting documentation here. ",null,null,null,null,null,null,null,null,null,"Embed the Acting Director's completed PDE340 and supporting documentation here. "]
[]
[]
[]
[]
[]
[]
[]
["Acting Director :",null,{"$f":"'Branch Campus'!C71","v":0},null,null,null,null,null,null,null,"Acting Director :",null,{"$f":"'Branch Campus'!C73","v":0}]
[]
[null,null,"Embed the Acting Director's completed PDE340 and supporting documentation here. ",null,null,null,null,null,null,null,null,null,"Embed the Acting Director's completed PDE340 and supporting documentation here. "]
[]
[]
[]
[]
[]
[]
[]
["Branch Campus:"]
["If the institution does not utilize branch campuses, please proceed to the next tab. "]
[]
["Name of Branch Campus:",null,null,{"$f":"'Branch Campus'!C90","v":0}]
[]
["School Director:",null,{"$f":"'Branch Campus'!C137","v":0}]
[]
[null,null,"Embed the Director's completed PDE340 and supporting documentation here. "]
[]
[]
[]
[]
[]
[]
[]
[null,null,"In accordance with Private Licensed Schools Memorandum #71, the school Director is required to attend a New Director Seminar within 6 months of the date of hire or promotion into the position.  "]
[null,null,"Please embed the Director's certificate or letter of attendance to verify this requirement has been fulfilled."]
[]
[]
[]
[]
[]
[]
[]
["Acting Director :",null,{"$f":"'Branch Campus'!C144","v":0},null,null,null,null,null,null,null,"Acting Director :",null,{"$f":"'Branch Campus'!C146","v":0}]
[]
[null,null,"Embed the Acting Director's completed PDE340 and supporting documentation here. ",null,null,null,null,null,null,null,null,null,"Embed the Acting Director's completed PDE340 and supporting documentation here. "]
[]
[]
[]
[]
[]
[]
[]
["Acting Director :",null,{"$f":"'Branch Campus'!C148","v":0},null,null,null,null,null,null,null,"Acting Director :",null,{"$f":"'Branch Campus'!C150","v":0}]
[]
[null,null,"Embed the Acting Director's completed PDE340 and supporting documentation here. ",null,null,null,null,null,null,null,null,null,"Embed the Acting Director's completed PDE340 and supporting documentation here. "]
[]
[]
[]
[]
[]
[]
[]
["Branch Campus:"]
["If the institution does not utilize branch campuses, please proceed to the next tab. "]
[]
["Name of Branch Campus:",null,null,{"$f":"'Branch Campus'!C167","v":0}]
[]
["School Director:",null,{"$f":"'Branch Campus'!C214","v":0}]
[]
[null,null,"Embed the Director's completed PDE340 and supporting documentation here. "]
[]
[]
[]
[]
[]
[]
[]
[null,null,"In accordance with Private Licensed Schools Memorandum #71, the school Director is required to attend a New Director Seminar within 6 months of the date of hire or promotion into the position.  "]
[null,null,"Please embed the Director's certificate or letter of attendance to verify this requirement has been fulfilled."]
[]
[]
[]
[]
[]
[]
[]
["Acting Director :",null,{"$f":"'Branch Campus'!C221","v":0},null,null,null,null,null,null,null,"Acting Director :",null,{"$f":"'Branch Campus'!C223","v":0}]
[]
[null,null,"Embed the Acting Director's completed PDE340 and supporting documentation here. ",null,null,null,null,null,null,null,null,null,"Embed the Acting Director's completed PDE340 and supporting documentation here. "]
[]
[]
[]
[]
[]
[]
[]
["Acting Director :",null,{"$f":"'Branch Campus'!C225","v":0},null,null,null,null,null,null,null,"Acting Director :",null,{"$f":"'Branch Campus'!C227","v":0}]
[]
[null,null,"Embed the Acting Director's completed PDE340 and supporting documentation here. ",null,null,null,null,null,null,null,null,null,"Embed the Acting Director's completed PDE340 and supporting documentation here. "]
[]
[]
[]
[]
[]
[]
[]
["END OF DIRECTOR QUALIFICATIONS - PROCEED TO NEXT WORKSHEET TAB"]

{"sheet":"Instructor Qualifications","index":7,"n_rows":263,"n_cols":20,"rows_kept":263,"cut":false,"hidden":false,"merged":[[255,1,260,3],[255,6,260,11],[255,14,260,16],[255,19,260,24],[247,1,247,11],[247,14,247,24],[248,1,252,5],[248,7,252,11],[248,14,252,18],[248,20,252,24],[238,1,243,3],[238,6,243,11],[238,14,243,16],[238,19,243,24],[245,1,245,5],[245,14,245,18],[230,1,230,11],[230,14,230,24],[231,1,235,5],[231,7,235,11],[231,14,235,18],[231,20,235,24],[221,1,226,3],[221,6,226,11],[221,14,226,16],[221,19,226,24],[228,1,228,5],[228,14,228,18],[197,20,201,24],[204,1,209,3],[204,6,209,11],[204,14,209,16],[204,19,209,24],[197,1,201,5],[197,7,201,11],[197,14,201,18],[211,1,211,5],[211,14,211,18],[213,1,213,11],[213,14,213,24],[214,1,218,5],[214,7,218,11],[214,14,218,18],[214,20,218,24],[187,19,192,24],[194,1,194,5],[194,14,194,18],[196,1,196,11],[196,14,196,24],[177,1,177,5],[177,14,177,18],[179,1,179,11],[179,14,179,24],[180,1,184,5],[180,7,184,11],[180,14,184,18],[180,20,184,24],[187,1,192,3],[187,6,192,11],[187,14,192,16],[163,20,167,24],[170,1,175,3],[170,6,175,11],[170,14,175,16],[170,19,175,24],[153,19,158,24],[160,1,160,5],[160,14,160,18],[162,1,162,11],[162,14,162,24],[153,1,158,3],[153,6,158,11],[153,14,158,16],[163,1,167,5],[163,7,167,11],[163,14,167,18],[145,1,145,11],[145,14,145,24],[146,1,150,5],[146,7,150,11],[146,14,150,18],[146,20,150,24],[136,1,141,3],[136,6,141,11],[136,14,141,16],[136,19,141,24],[143,1,143,5],[143,14,143,18],[128,1,128,11],[128,14,128,24],[129,1,133,5],[129,7,133,11],[129,14,133,18],[129,20,133,24],[119,1,124,3],[119,6,124,11],[119,14,124,16],[119,19,124,24],[126,1,126,5],[126,14,126,18],[95,20,99,24],[102,1,107,3],[102,6,107,11],[102,14,107,16],[102,19,107,24],[85,19,90,24],[92,1,92,5],[92,14,92,18],[94,1,94,11],[94,14,94,24],[77,1,77,11],[77,14,77,24],[78,1,82,5],[78,7,82,11],[78,14,82,18],[78,20,82,24],[61,7,65,11],[61,14,65,18],[61,20,65,24],[68,1,73,3],[68,6,73,11],[68,14,73,16],[68,19,73,24],[60,14,60,24],[43,1,43,11],[43,14,43,24],[44,1,48,5],[44,7,48,11],[44,14,48,18],[44,20,48,24],[75,1,75,5],[75,14,75,18],[27,20,31,24],[34,1,39,3],[34,6,39,11],[34,14,39,16],[34,19,39,24],[17,19,22,24],[24,1,24,5],[24,14,24,18],[26,1,26,11],[26,14,26,24],[27,1,31,5],[27,7,31,11],[27,14,31,18],[5,13,5,16],[7,14,7,18],[9,14,9,24],[10,14,14,18],[10,20,14,24],[17,1,22,3],[5,0,5,3],[9,1,9,11],[10,1,14,5],[10,7,14,11],[17,6,22,11],[17,14,22,16],[7,1,7,5],[41,1,41,5],[41,14,41,18],[51,1,56,3],[51,6,56,11],[51,14,56,16],[61,1,65,5],[112,1,116,5],[112,7,116,11],[85,1,90,3],[85,6,90,11],[85,14,90,16],[95,1,99,5],[95,7,99,11],[95,14,99,18],[109,1,109,5],[109,14,109,18],[111,1,111,11],[111,14,111,24],[112,14,116,18],[112,20,116,24],[51,19,56,24],[58,1,58,5],[58,14,58,18],[60,1,60,11]]}
["Compliance Audit Self-Study"]
["Pennsylvania State Board of Private Licensed Schools"]
[]
["Ensure all PDE279 forms and resumes are current, including employment with the school."]
[]
["Instructor Qualifications Form PDE-279 (Excel)"]
[]
["1 Instructor Name:",null,null,null,null,null,null,null,null,null,null,null,null,"2 Instructor Name:"]
[]
[null,"List the names of the programs, along with the corresponding courses, taught by this instructor.",null,null,null,null,null,null,null,null,null,null,null,null,"List the names of the programs, along with the corresponding courses, taught by this instructor."]
[]
["Programs:",null,null,null,null,null,"Courses:",null,null,null,null,null,null,"Programs:",null,null,null,null,null,"Courses:"]
[]
[]
[]
[]
[null,"Embed the instructor's completed PDE279.",null,null,null,null,"Embed the instructor's supporting documentation.",null,null,null,null,null,null,null,"Embed the instructor's completed PDE279.",null,null,null,null,"Embed the instructor's supporting documentation."]
[]
[]
[]
[]
[]
[]
[]
["3 Instructor Name:",null,null,null,null,null,null,null,null,null,null,null,null,"4 Instructor Name:"]
[]
[null,"List the names of the programs, along with the corresponding courses, taught by this instructor.",null,null,null,null,null,null,null,null,null,null,null,null,"List the names of the programs, along with the corresponding courses, taught by this instructor."]
[]
["Programs:",null,null,null,null,null,"Courses:",null,null,null,null,null,null,"Programs:",null,null,null,null,null,"Courses:"]
[]
[]
[]
[]
[null,"Embed the instructor's completed PDE279.",null,null,null,null,"Embed the instructor's supporting documentation.",null,null,null,null,null,null,null,"Embed the instructor's completed PDE279.",null,null,null,null,"Embed the instructor's supporting documentation."]
[]
[]
[]
[]
[]
[]
[]
["5 Instructor Name:",null,null,null,null,null,null,null,null,null,null,null,null,"6 Instructor Name:"]
[]
[null,"List the names of the programs, along with the corresponding courses, taught by this instructor.",null,null,null,null,null,null,null,null,null,null,null,null,"List the names of the programs, along with the corresponding courses, taught by this instructor."]
[]
["Programs:",null,null,null,null,null,"Courses:",null,null,null,null,null,null,"Programs:",null,null,null,null,null,"Courses:"]
[]
[]
[]
[]
[null,"Embed the instructor's completed PDE279.",null,null,null,null,"Embed the instructor's supporting documentation.",null,null,null,null,null,null,null,"Embed the instructor's completed PDE279.",null,null,null,null,"Embed the instructor's supporting documentation."]
[]
[]
[]
[]
[]
[]
[]
["7 Instructor Name:",null,null,null,null,null,null,null,null,null,null,null,null,"8 Instructor Name:"]
[]
[null,"List the names of the programs, along with the corresponding courses, taught by this instructor.",null,null,null,null,null,null,null,null,null,null,null,null,"List the names of the programs, along with the corresponding courses, taught by this instructor."]
[]
["Programs:",null,null,null,null,null,"Courses:",null,null,null,null,null,null,"Programs:",null,null,null,null,null,"Courses:"]
[]
[]
[]
[]
[null,"Embed the instructor's completed PDE279.",null,null,null,null,"Embed the instructor's supporting documentation.",null,null,null,null,null,null,null,"Embed the instructor's completed PDE279.",null,null,null,null,"Embed the instructor's supporting documentation."]
[]
[]
[]
[]
[]
[]
[]
["9 Instructor Name:",null,null,null,null,null,null,null,null,null,null,null,null,"10 Instructor Name:"]
[]
[null,"List the names of the programs, along with the corresponding courses, taught by this instructor.",null,null,null,null,null,null,null,null,null,null,null,null,"List the names of the programs, along with the corresponding courses, taught by this instructor."]
[]
["Programs:",null,null,null,null,null,"Courses:",null,null,null,null,null,null,"Programs:",null,null,null,null,null,"Courses:"]
[]
[]
[]
[]
[null,"Embed the instructor's completed PDE279.",null,null,null,null,"Embed the instructor's supporting documentation.",null,null,null,null,null,null,null,"Embed the instructor's completed PDE279.",null,null,null,null,"Embed the instructor's supporting documentation."]
[]
[]
[]
[]
[]
[]
[]
["11 Instructor Name:",null,null,null,null,null,null,null,null,null,null,null,null,"12 Instructor Name:"]
[]
[null,"List the names of the programs, along with the corresponding courses, taught by this instructor.",null,null,null,null,null,null,null,null,null,null,null,null,"List the names of the programs, along with the corresponding courses, taught by this instructor."]
[]
["Programs:",null,null,null,null,null,"Courses:",null,null,null,null,null,null,"Programs:",null,null,null,null,null,"Courses:"]
[]
[]
[]
[]
[null,"Embed the instructor's completed PDE279.",null,null,null,null,"Embed the instructor's supporting documentation.",null,null,null,null,null,null,null,"Embed the instructor's completed PDE279.",null,null,null,null,"Embed the instructor's supporting documentation."]
[]
[]
[]
[]
[]
[]
[]
["13 Instructor Name:",null,null,null,null,null,null,null,null,null,null,null,null,"14 Instructor Name:"]
[]
[null,"List the names of the programs, along with the corresponding courses, taught by this instructor.",null,null,null,null,null,null,null,null,null,null,null,null,"List the names of the programs, along with the corresponding courses, taught by this instructor."]
[]
["Programs:",null,null,null,null,null,"Courses:",null,null,null,null,null,null,"Programs:",null,null,null,null,null,"Courses:"]
[]
[]
[]
[]
[null,"Embed the instructor's completed PDE279.",null,null,null,null,"Embed the instructor's supporting documentation.",null,null,null,null,null,null,null,"Embed the instructor's completed PDE279.",null,null,null,null,"Embed the instructor's supporting documentation."]
[]
[]
[]
[]
[]
[]
[]
["15 Instructor Name:",null,null,null,null,null,null,null,null,null,null,null,null,"16 Instructor Name:"]
[]
[null,"List the names of the programs, along with the corresponding courses, taught by this instructor.",null,null,null,null,null,null,null,null,null,null,null,null,"List the names of the programs, along with the corresponding courses, taught by this instructor."]
[]
["Programs:",null,null,null,null,null,"Courses:",null,null,null,null,null,null,"Programs:",null,null,null,null,null,"Courses:"]
[]
[]
[]
[]
[null,"Embed the instructor's completed PDE279.",null,null,null,null,"Embed the instructor's supporting documentation.",null,null,null,null,null,null,null,"Embed the instructor's completed PDE279.",null,null,null,null,"Embed the instructor's supporting documentation."]
[]
[]
[]
[]
[]
[]
[]
["17 Instructor Name:",null,null,null,null,null,null,null,null,null,null,null,null,"18 Instructor Name:"]
[]
[null,"List the names of the programs, along with the corresponding courses, taught by this instructor.",null,null,null,null,null,null,null,null,null,null,null,null,"List the names of the programs, along with the corresponding courses, taught by this instructor."]
[]
["Programs:",null,null,null,null,null,"Courses:",null,null,null,null,null,null,"Programs:",null,null,null,null,null,"Courses:"]
[]
[]
[]
[]
[null,"Embed the instructor's completed PDE279.",null,null,null,null,"Embed the instructor's supporting documentation.",null,null,null,null,null,null,null,"Embed the instructor's completed PDE279.",null,null,null,null,"Embed the instructor's supporting documentation."]
[]
[]
[]
[]
[]
[]
[]
["19 Instructor Name:",null,null,null,null,null,null,null,null,null,null,null,null,"20 Instructor Name:"]
[]
[null,"List the names of the programs, along with the corresponding courses, taught by this instructor.",null,null,null,null,null,null,null,null,null,null,null,null,"List the names of the programs, along with the corresponding courses, taught by this instructor."]
[]
["Programs:",null,null,null,null,null,"Courses:",null,null,null,null,null,null,"Programs:",null,null,null,null,null,"Courses:"]
[]
[]
[]
[]
[null,"Embed the instructor's completed PDE279.",null,null,null,null,"Embed the instructor's supporting documentation.",null,null,null,null,null,null,null,"Embed the instructor's completed PDE279.",null,null,null,null,"Embed the instructor's supporting documentation."]
[]
[]
[]
[]
[]
[]
[]
["21 Instructor Name:",null,null,null,null,null,null,null,null,null,null,null,null,"22 Instructor Name:"]
[]
[null,"List the names of the programs, along with the corresponding courses, taught by this instructor.",null,null,null,null,null,null,null,null,null,null,null,null,"List the names of the programs, along with the corresponding courses, taught by this instructor."]
[]
["Programs:",null,null,null,null,null,"Courses:",null,null,null,null,null,null,"Programs:",null,null,null,null,null,"Courses:"]
[]
[]
[]
[]
[null,"Embed the instructor's completed PDE279.",null,null,null,null,"Embed the instructor's supporting documentation.",null,null,null,null,null,null,null,"Embed the instructor's completed PDE279.",null,null,null,null,"Embed the instructor's supporting documentation."]
[]
[]
[]
[]
[]
[]
[]
["23 Instructor Name:",null,null,null,null,null,null,null,null,null,null,null,null,"24 Instructor Name:"]
[]
[null,"List the names of the programs, along with the corresponding courses, taught by this instructor.",null,null,null,null,null,null,null,null,null,null,null,null,"List the names of the programs, along with the corresponding courses, taught by this instructor."]
[]
["Programs:",null,null,null,null,null,"Courses:",null,null,null,null,null,null,"Programs:",null,null,null,null,null,"Courses:"]
[]
[]
[]
[]
[null,"Embed the instructor's completed PDE279.",null,null,null,null,"Embed the instructor's supporting documentation.",null,null,null,null,null,null,null,"Embed the instructor's completed PDE279.",null,null,null,null,"Embed the instructor's supporting documentation."]
[]
[]
[]
[]
[]
[]
[]
["25 Instructor Name:",null,null,null,null,null,null,null,null,null,null,null,null,"26 Instructor Name:"]
[]
[null,"List the names of the programs, along with the corresponding courses, taught by this instructor.",null,null,null,null,null,null,null,null,null,null,null,null,"List the names of the programs, along with the corresponding courses, taught by this instructor."]
[]
["Programs:",null,null,null,null,null,"Courses:",null,null,null,null,null,null,"Programs:",null,null,null,null,null,"Courses:"]
[]
[]
[]
[]
[null,"Embed the instructor's completed PDE279.",null,null,null,null,"Embed the instructor's supporting documentation.",null,null,null,null,null,null,null,"Embed the instructor's completed PDE279.",null,null,null,null,"Embed the instructor's supporting documentation."]
[]
[]
[]
[]
[]
[]
[]
["27 Instructor Name:",null,null,null,null,null,null,null,null,null,null,null,null,"28 Instructor Name:"]
[]
[null,"List the names of the programs, along with the corresponding courses, taught by this instructor.",null,null,null,null,null,null,null,null,null,null,null,null,"List the names of the programs, along with the corresponding courses, taught by this instructor."]
[]
["Programs:",null,null,null,null,null,"Courses:",null,null,null,null,null,null,"Programs:",null,null,null,null,null,"Courses:"]
[]
[]
[]
[]
[null,"Embed the instructor's completed PDE279.",null,null,null,null,"Embed the instructor's supporting documentation.",null,null,null,null,null,null,null,"Embed the instructor's completed PDE279.",null,null,null,null,"Embed the instructor's supporting documentation."]
[]
[]
[]
[]
[]
[]
[]
["29 Instructor Name:",null,null,null,null,null,null,null,null,null,null,null,null,"30 Instructor Name:"]
[]
[null,"List the names of the programs, along with the corresponding courses, taught by this instructor.",null,null,null,null,null,null,null,null,null,null,null,null,"List the names of the programs, along with the corresponding courses, taught by this instructor."]
[]
["Programs:",null,null,null,null,null,"Courses:",null,null,null,null,null,null,"Programs:",null,null,null,null,null,"Courses:"]
[]
[]
[]
[]
[null,"Embed the instructor's completed PDE279.",null,null,null,null,"Embed the instructor's supporting documentation.",null,null,null,null,null,null,null,"Embed the instructor's completed PDE279.",null,null,null,null,"Embed the instructor's supporting documentation."]
[]
[]
[]
[]
[]
[]
[]
["END OF INSTRUCTOR QUALIFICATIONS - PROCEED TO NEXT WORKSHEET TAB"]

{"sheet":"Admission Reps","index":8,"n_rows":27,"n_cols":2,"rows_kept":27,"cut":false,"hidden":false,"merged":[[12,1,16,3],[20,1,24,3]]}
["Compliance Audit Self-Study"]
["Pennsylvania State Board of Private Licensed Schools"]
[]
["A representative acting on behalf of a private licensed school, who solicits or procures enrollment through an enrollment agreement, at a location off school premises, is mandated to be licensed/registered as an Admission Representative by the Board. "]
[null,"Admissions Representative License Application Form PDE-5006 (PDF)"]
[]
["Does the school conduct enrollment/admissions at sites other than the school's location?"]
[]
[]
[]
["If yes, embed a document which lists the names and addresses of all enrollment/admission location sites."]
[]
[]
[]
[]
[]
[]
[]
["If yes, embed a document which list the licensed admission representatives, along with their license numbers and expiration date. "]
[]
[]
[]
[]
[]
[]
[]
["END OF ADMISSION REPS - PROCEED TO NEXT WORKSHEET TAB"]

{"sheet":"Repository","index":9,"n_rows":31,"n_cols":6,"rows_kept":31,"cut":false,"hidden":false,"merged":[[20,3,20,4],[23,1,28,3],[9,1,9,6],[17,5,17,6],[11,1,11,7],[12,1,12,11],[13,1,13,7],[14,1,14,7],[16,1,16,6]]}
["Compliance Audit Self-Study"]
["Pennsylvania State Board of Private Licensed Schools"]
[]
["In accordance with § 73.23, a school shall provide for a method of maintenance of and access to the transcript of academic performance for 50 years after graduation, termination or withdrawal."]
[]
["Schools are required to present an updated records repository agreement at the time of renewal."]
[]
["The Central Repository is now open.  All schools must enter into agreement with the central repository, Verif-y, prior to renewal."]
[]
[null,"Central Repository FAQ and Resource Information (PDF)"]
[]
[null,"Please visit our website for additional information: Central Repository"]
[null,"Board Policy Memo # 103, Annual Consolidation of Student Transcripts to Central Repository (PDF)"]
[null,"Board Policy Memo #106, Records Repository Agreement (PDF)"]
[null,"Live System Demonstration with Verif-y 11/30/2023 (YouTube)"]
[]
[null,"Verif-y New Account Registration / Existing Account Login"]
[null,"If you require assistance, please contact ",null,null,null,"support@verif-y.com"]
[]
[]
[null,null,"Date of agreement:"]
[]
[null,"Embed a copy of the signed agreement."]
[]
[]
[]
[]
[]
[]
[]
["END OF REPOSITORY - PROCEED TO NEXT WORKSHEET TAB"]

{"sheet":"Program Profile","index":10,"n_rows":165,"n_cols":32,"rows_kept":165,"cut":false,"hidden":false,"merged":[[156,2,162,6],[5,4,5,9],[26,1,31,6],[45,1,50,6],[60,1,65,1],[147,2,147,3],[139,2,139,7],[139,9,139,10],[142,2,142,7],[144,2,144,7],[144,9,144,10],[72,29,72,31],[73,29,73,31],[73,5,73,7],[72,5,72,7],[72,13,72,15],[73,13,73,15],[72,21,72,23],[73,21,73,23]]}
["Compliance Audit Self-Study"]
["Pennsylvania State Board of Private Licensed Schools"]
[]
["Follow the instructions below to obtain and review the school's PDE-3808 Program Profile; which lists key information related to the school's Board-approved programs."]
[]
[null,"1. Go to the PA Department of Education website at:",null,null,"PA Department of Education, Private Licensed Schools"]
[]
[null,"2. Select option 2 'Click here to search program profile'."]
[]
[null,"3. As requested, enter your school's name."]
[]
[null,"4. If more than one school selection appears, choose the appropriate school location."]
[]
[null,"5. You will then be able to select the 'Export drop down menu' to open and save the document as a PDF."]
[]
[null,"6. Choose the appropriate option below:"]
[]
["Program Names and Tuition"]
[]
[null,"Check the box to certify that the PDE-3808 Program Profile, which lists the program names and tuition on record with the Board, is accurate and representative of what is advertised and offered to students."]
[]
[null,"OR"]
[]
[]
[null,"Note the program information that is inconsistent on the PDE-3808 and provide an explanation as to "]
[null,"why the program profile on record with the Board differs from what is being advertised and offered at the school."]
[]
[]
[]
[]
[]
[]
[]
["CIP Codes "]
[]
[null,"Take this opportunity to review the CIP Codes assigned to your Board-approved programs, indicated on the PDE-3808 Program Profile."]
[null,"Visit the NCES CIP Code Search using the link below:"]
[]
[null,"Classification of Instructional Programs, National Center for Education Statistics, US Department of Education"]
[]
[null,"Check the box to certify that the PDE-3808 Program Profile, which lists the CIP Codes assigned to Board-approved programs, is accurate."]
[]
[null,"OR"]
[]
[null,"If you believe a CIP Code needs to be changed, indicate the current CIP Code, the program name, and the proposed CIP Code; as well as provide the rationale for the proposed change."]
[]
[]
[]
[]
[]
[]
[]
["PDE-3808 Program Profile Requested Revisions"]
[]
[null,"Check the box to certify that no revisions are necessary to the PDE-3808 Program Profile."]
[]
[null,"OR"]
[]
[null,"If there are revisions that need to be made to the PDE-3808 Program Profile; ",null,null,null,null,null,null,"Failure by a school to report changes in tuition and/or application/registration/enrollments fees to Board staff at least 30 days "]
[null,"print the PDE-3808, note the revisions, sign and date the document, scan and embed the document here:",null,null,null,null,null,null,"prior to the effective date of change, or to request Board staff approval prior to changing the name of a Board-approved program, "]
[null,null,null,null,null,null,null,null,"for any reason, will subject the school to enforcement actions for the violation of regulatory mandates. "]
[]
[null,null,null,null,null,null,null,null,"Enforcement may include imposition of a civil penalty and/or suspension or revocation of school license/registration:"]
[]
[null,null,null,null,null,null,null,null,"Changes in tuition, fees and all costs under the school’s control may not become effective for currently "]
[null,null,null,null,null,null,null,null,"enrolled students unless students are notified of the change at least 60 calendar days prior to the effective date of the change."]
[]
["Program Enrollment Dates"]
[]
["List all Board-approved programs for the school - main facility and branch campuses - and the most current/recent enrollment date (last class start). "]
["List all programs and the program's most current/recent enrollment date (last class start), even if the program is not currently being offered and/or is not listed in the school catalog.  If it is on the PDE-3808, it needs to be listed here."]
[]
[null,"Main Campus",null,null,null,"as advertised in all school communications, ",null,null,null,"Branch Campus",null,null,null,"as advertised in all school communications, ",null,null,null,"Branch Campus",null,null,null,"as advertised in all school communications, ",null,null,null,"Branch Campus",null,null,null,"as advertised in all school communications, "]
[null,null,null,null,null,"publications, and documentation",null,null,null,{"$f":"'Branch Campus'!C13","v":0},null,null,null,"publications, and documentation",null,null,null,{"$f":"'Branch Campus'!C90","v":0},null,null,null,"publications, and documentation",null,null,null,{"$f":"'Branch Campus'!C167","v":0},null,null,null,"publications, and documentation"]
[null,"list all Board-approved programs",null,"Current Enrollment Date",null,null,null,"Application/Enrollment/",null,null,null,"Current Enrollment Date",null,null,null,"Application/Enrollment/",null,null,null,"Current Enrollment Date",null,null,null,"Application/Enrollment/",null,null,null,"Current Enrollment Date",null,null,null,"Application/Enrollment/"]
[null,"Board-Approved Program Name",null,"(i.e. Last class start)",null,"Tuition",null,"Registration Fee",null,"Board-Approved Program Name",null,"(i.e. Last class start)",null,"Tuition",null,"Registration Fee",null,"Board-Approved Program Name",null,"(i.e. Last class start)",null,"Tuition",null,"Registration Fee",null,"Board-Approved Program Name",null,"(i.e. Last class start)",null,"Tuition",null,"Registration Fee"]
[]
[1,null,null,null,null,null,null,null,1,{"$f":"'Branch Campus'!C78","v":0},null,null,null,null,null,null,1,{"$f":"'Branch Campus'!C155","v":0},null,null,null,null,null,null,1,{"$f":"'Branch Campus'!C232","v":0}]
[]
[2,null,null,null,null,null,null,null,2,{"$f":"'Branch Campus'!C80","v":0},null,null,null,null,null,null,2,{"$f":"'Branch Campus'!C157","v":0},null,null,null,null,null,null,2,{"$f":"'Branch Campus'!C234","v":0}]
[]
[3,null,null,null,null,null,null,null,3,{"$f":"'Branch Campus'!C82","v":0},null,null,null,null,null,null,3,{"$f":"'Branch Campus'!C159","v":0},null,null,null,null,null,null,3,{"$f":"'Branch Campus'!C236","v":0}]
[]
[4,null,null,null,null,null,null,null,4,{"$f":"'Branch Campus'!C84","v":0},null,null,null,null,null,null,4,{"$f":"'Branch Campus'!C161","v":0},null,null,null,null,null,null,4,{"$f":"'Branch Campus'!C238","v":0}]
[]
[5,null,null,null,null,null,null,null,5,{"$f":"'Branch Campus'!C86","v":0},null,null,null,null,null,null,5,{"$f":"'Branch Campus'!C163","v":0},null,null,null,null,null,null,5,{"$f":"'Branch Campus'!C240","v":0}]
[]
[6,null,null,null,null,null,null,null,6,{"$f":"'Branch Campus'!J78","v":0},null,null,null,null,null,null,6,{"$f":"'Branch Campus'!J155","v":0},null,null,null,null,null,null,6,{"$f":"'Branch Campus'!J232","v":0}]
[]
[7,null,null,null,null,null,null,null,7,{"$f":"'Branch Campus'!J80","v":0},null,null,null,null,null,null,7,{"$f":"'Branch Campus'!J157","v":0},null,null,null,null,null,null,7,{"$f":"'Branch Campus'!J234","v":0}]
[]
[8,null,null,null,null,null,null,null,8,{"$f":"'Branch Campus'!J82","v":0},null,null,null,null,null,null,8,{"$f":"'Branch Campus'!J159","v":0},null,null,null,null,null,null,8,{"$f":"'Branch Campus'!J236","v":0}]
[]
[9,null,null,null,null,null,null,null,9,{"$f":"'Branch Campus'!J84","v":0},null,null,null,null,null,null,9,{"$f":"'Branch Campus'!J161","v":0},null,null,null,null,null,null,9,{"$f":"'Branch Campus'!J238","v":0}]
[]
[10,null,null,null,null,null,null,null,10,{"$f":"'Branch Campus'!J86","v":0},null,null,null,null,null,null,10,{"$f":"'Branch Campus'!J163","v":0},null,null,null,null,null,null,10,{"$f":"'Branch Campus'!J240","v":0}]
[]
[11]
[]
[12]
[]
[13]
[]
[14]
[]
[15]
[]
[16]
[]
[17]
[]
[18]
[]
[19]
[]
[20]
[]
[21]
[]
[22]
[]
[23]
[]
[24]
[]
[25]
[]
[26]
[]
[27]
[]
[28]
[]
[29]
[]
[30]
[]
["Certification of the person completing this application:"]
[]
[null,"Name:",null,null,null,null,null,null,"Date:"]
[null,null,"By placing my name above, I certify with my electronic signature that the information contained in this application is accurate."]
[]
[null,"Affiliation with the school:"]
[]
[null,"E-mail:",null,null,null,null,null,null,"Phone:"]
[null,null,"The Division will communicate with the school using this e-mail address. Be sure that this e-mail address is valid and correct and that it is checked regularly."]
[]
[null,"Date of Certification:"]
[]
[null,null,"By checking this box, the school certifies:"]
[null,null,"The school is advertising and enrolling students in programs according to the program name approved by the Board"]
[null,null,"The school is advertising and charging program tuition amounts as listed on the program profile"]
[null,null,"The school is advertising, enrolling, and conducting programs according to the clock hours listed on the program profile"]
[null,null,"The school is advertising and issuing program awards as indicated on the program profile"]
[]
[null,null,"If any of the information to be certified differs from what the school is currently advertising or offering students, please explain:"]
[]
[]
[]
[]
[]
[]
[]
[]
["END OF PROGRAM PROFILE - PROCEED TO NEXT WORKSHEET TAB"]

{"sheet":"Equipment","index":11,"n_rows":1040,"n_cols":48,"rows_kept":1040,"cut":false,"hidden":false,"merged":[[9,1,15,1],[155,39,155,45],[17,38,17,47],[19,39,19,45],[53,39,53,45],[87,39,87,45],[121,39,121,45],[155,3,155,9],[19,3,19,9],[17,1,17,11],[53,3,53,9],[87,3,87,9],[121,3,121,9],[189,39,189,45],[223,39,223,45],[257,39,257,45],[291,39,291,45],[325,39,325,45],[291,27,291,33],[325,27,325,33],[17,14,17,23],[17,26,17,35],[19,27,19,33],[53,27,53,33],[87,27,87,33],[121,27,121,33],[291,15,291,21],[325,15,325,21],[155,27,155,33],[189,27,189,33],[223,27,223,33],[257,27,257,33],[1005,3,1005,9],[19,15,19,21],[53,15,53,21],[87,15,87,21],[121,15,121,21],[155,15,155,21],[189,15,189,21],[223,15,223,21],[257,15,257,21],[801,3,801,9],[835,3,835,9],[869,3,869,9],[903,3,903,9],[937,3,937,9],[971,3,971,9],[597,3,597,9],[631,3,631,9],[665,3,665,9],[699,3,699,9],[733,3,733,9],[767,3,767,9],[563,3,563,9],[189,3,189,9],[223,3,223,9],[257,3,257,9],[291,3,291,9],[325,3,325,9],[359,3,359,9],[393,3,393,9],[427,3,427,9],[461,3,461,9],[495,3,495,9],[529,3,529,9]]}
["Compliance Audit Self-Study"]
["Pennsylvania State Board of Private Licensed Schools"]
[]
["Please list the major pieces of equipment used by students per program - at both the main campus and branch campuses. Do not list supplies. "]
["The Board Administrator will ask to see equipment and have the school demonstrate the use of the equipment as applicable. "]
[]
[null,"If the school maintains an active equipment list, it may be provided here in lieu of completing the worksheet. "]
[null,"However, the list must be separated by main and branch campuses and must include all the required information below."]
[null,"Embed equipment list here or complete the worksheet below."]
[]
[]
[]
[]
[]
[]
[]
[]
[null,"Main Campus",null,null,null,null,null,null,null,null,null,null,null,"Branch Campus",{"$f":"'Branch Campus'!C13","v":0},null,null,null,null,null,null,null,null,null,null,"Branch Campus",{"$f":"'Branch Campus'!C90","v":0},null,null,null,null,null,null,null,null,null,null,"Branch Campus",{"$f":"'Branch Campus'!C167","v":0}]
[]
[null,"1 Program Name:",null,{"$f":"'Program Profile'!B78","v":0},null,null,null,null,null,null,null,null,null,"1 Program Name:",null,{"$f":"'Branch Campus'!C78","v":0},null,null,null,null,null,null,null,null,null,"1 Program Name:",null,{"$f":"'Branch Campus'!C144","v":0},null,null,null,null,null,null,null,null,null,"1 Program Name:",null,{"$f":"'Branch Campus'!C232","v":0}]
[null,null,null,null,null,null,null,null,null,null,null,"Student:Equipment",null,null,null,null,null,null,null,null,null,null,null,"Student:Equipment",null,null,null,null,null,null,null,null,null,null,null,"Student:Equipment",null,null,null,null,null,null,null,null,null,null,null,"Student:Equipment"]
[null,"Item of Equipment",null,"Quantity",null,"Make",null,"Model",null,"Specifications",null,"Ratio",null,"Item of Equipment",null,"Quantity",null,"Make",null,"Model",null,"Specifications",null,"Ratio",null,"Item of Equipment",null,"Quantity",null,"Make",null,"Model",null,"Specifications",null,"Ratio",null,"Item of Equipment",null,"Quantity",null,"Make",null,"Model",null,"Specifications",null,"Ratio"]
[]
[]
[]
[]
[]
[]
[]
[]
[]
[]
[]
[]
[]
[]
[]
[]
[]
[]
[]
[]
[]
[]
[]
[]
[]
[]
[]
[]
[]
[]
[]
[null,"2 Program Name:",null,{"$f":"'Program Profile'!B80","v":0},null,null,null,null,null,null,null,null,null,"2 Program Name:",null,{"$f":"'Branch Campus'!C80","v":0},null,null,null,null,null,null,null,null,null,"2 Program Name:",null,{"$f":"'Branch Campus'!C157","v":0},null,null,null,null,null,null,null,null,null,"2 Program Name:",null,{"$f":"'Branch Campus'!C234","v":0}]
[null,null,null,null,null,null,null,null,null,null,null,"Student:Equipment",null,null,null,null,null,null,null,null,null,null,null,"Student:Equipment",null,null,null,null,null,null,null,null,null,null,null,"Student:Equipment",null,null,null,null,null,null,null,null,null,null,null,"Student:Equipment"]
[null,"Item of Equipment",null,"Quantity",null,"Make",null,"Model",null,"Specifications",null,"Ratio",null,"Item of Equipment",null,"Quantity",null,"Make",null,"Model",null,"Specifications",null,"Ratio",null,"Item of Equipment",null,"Quantity",null,"Make",null,"Model",null,"Specifications",null,"Ratio",null,"Item of Equipment",null,"Quantity",null,"Make",null,"Model",null,"Specifications",null,"Ratio"]
[]
[]
[]
[]
[]
[]
[]
[]
[]
[]
[]
[]
[]
[]
[]
[]
[]
[]
[]
[]
[]
[]
[]
[]
[]
[]
[]
[]
[]
[]
[]
[null,"3 Program Name:",null,{"$f":"'Program Profile'!B82","v":0},null,null,null,null,null,null,null,null,null,"3 Program Name:",null,{"$f":"'Branch Campus'!C82","v":0},null,null,null,null,null,null,null,null,null,"3 Program Name:",null,{"$f":"'Branch Campus'!C159","v":0},null,null,null,null,null,null,null,null,null,"3 Program Name:",null,{"$f":"'Branch Campus'!C236","v":0}]
[null,null,null,null,null,null,null,null,null,null,null,"Student:Equipment",null,null,null,null,null,null,null,null,null,null,null,"Student:Equipment",null,null,null,null,null,null,null,null,null,null,null,"Student:Equipment",null,null,null,null,null,null,null,null,null,null,null,"Student:Equipment"]
[null,"Item of Equipment",null,"Quantity",null,"Make",null,"Model",null,"Specifications",null,"Ratio",null,"Item of Equipment",null,"Quantity",null,"Make",null,"Model",null,"Specifications",null,"Ratio",null,"Item of Equipment",null,"Quantity",null,"Make",null,"Model",null,"Specifications",null,"Ratio",null,"Item of Equipment",null,"Quantity",null,"Make",null,"Model",null,"Specifications",null,"Ratio"]
[]
[]
[]
[]
[]
[]
[]
[]
[]
[]
[]
[]
[]
[]
[]
[]
[]
[]
[]
[]
[]
[]
[]
[]
[]
[]
[]
[]
[]
[]
[]
[null,"4 Program Name:",null,{"$f":"'Program Profile'!B84","v":0},null,null,null,null,null,null,null,null,null,"4 Program Name:",null,{"$f":"'Branch Campus'!C84","v":0},null,null,null,null,null,null,null,null,null,"4 Program Name:",null,{"$f":"'Branch Campus'!C161","v":0},null,null,null,null,null,null,null,null,null,"4 Program Name:",null,{"$f":"'Branch Campus'!C238","v":0}]
[null,null,null,null,null,null,null,null,null,null,null,"Student:Equipment",null,null,null,null,null,null,null,null,null,null,null,"Student:Equipment",null,null,null,null,null,null,null,null,null,null,null,"Student:Equipment",null,null,null,null,null,null,null,null,null,null,null,"Student:Equipment"]
[null,"Item of Equipment",null,"Quantity",null,"Make",null,"Model",null,"Specifications",null,"Ratio",null,"Item of Equipment",null,"Quantity",null,"Make",null,"Model",null,"Specifications",null,"Ratio",null,"Item of Equipment",null,"Quantity",null,"Make",null,"Model",null,"Specifications",null,"Ratio",null,"Item of Equipment",null,"Quantity",null,"Make",null,"Model",null,"Specifications",null,"Ratio"]
[]
[]
[]
[]
[]
[]
[]
[]
[]
[]
[]
[]
[]
[]
[]
[]
[]
[]
[]
[]
[]
[]
[]
[]
[]
[]
[]
[]
[]
[]
[]
[null,"5 Program Name:",null,{"$f":"'Program Profile'!B86","v":0},null,null,null,null,null,null,null,null,null,"5 Program Name:",null,{"$f":"'Branch Campus'!C86","v":0},null,null,null,null,null,null,null,null,null,"5 Program Name:",null,{"$f":"'Branch Campus'!C163","v":0},null,null,null,null,null,null,null,null,null,"5 Program Name:",null,{"$f":"'Branch Campus'!C240","v":0}]
[null,null,null,null,null,null,null,null,null,null,null,"Student:Equipment",null,null,null,null,null,null,null,null,null,null,null,"Student:Equipment",null,null,null,null,null,null,null,null,null,null,null,"Student:Equipment",null,null,null,null,null,null,null,null,null,null,null,"Student:Equipment"]
[null,"Item of Equipment",null,"Quantity",null,"Make",null,"Model",null,"Specifications",null,"Ratio",null,"Item of Equipment",null,"Quantity",null,"Make",null,"Model",null,"Specifications",null,"Ratio",null,"Item of Equipment",null,"Quantity",null,"Make",null,"Model",null,"Specifications",null,"Ratio",null,"Item of Equipment",null,"Quantity",null,"Make",null,"Model",null,"Specifications",null,"Ratio"]
[]
[]
[]
[]
[]
[]
[]
[]
[]
[]
[]
[]
[]
[]
[]
[]
[]
[]
[]
[]
[]
[]
[]
[]
[]
[]
[]
[]
[]
[]
[]
[null,"6 Program Name:",null,{"$f":"'Program Profile'!B88","v":0},null,null,null,null,null,null,null,null,null,"6 Program Name:",null,{"$f":"'Branch Campus'!J78","v":0},null,null,null,null,null,null,null,null,null,"6 Program Name:",null,{"$f":"'Branch Campus'!J155","v":0},null,null,null,null,null,null,null,null,null,"6 Program Name:",null,{"$f":"'Branch Campus'!J232","v":0}]
[null,null,null,null,null,null,null,null,null,null,null,"Student:Equipment",null,null,null,null,null,null,null,null,null,null,null,"Student:Equipment",null,null,null,null,null,null,null,null,null,null,null,"Student:Equipment",null,null,null,null,null,null,null,null,null,null,null,"Student:Equipment"]
[null,"Item of Equipment",null,"Quantity",null,"Make",null,"Model",null,"Specifications",null,"Ratio",null,"Item of Equipment",null,"Quantity",null,"Make",null,"Model",null,"Specifications",null,"Ratio",null,"Item of Equipment",null,"Quantity",null,"Make",null,"Model",null,"Specifications",null,"Ratio",null,"Item of Equipment",null,"Quantity",null,"Make",null,"Model",null,"Specifications",null,"Ratio"]
[]
[]
[]
[]
[]
[]
[]
[]
[]
[]
[]
[]
[]
[]
[]
[]
[]
[]
[]
[]
[]
[]
[]
[]
[]
[]
[]
[]
[]
[]
[]
[null,"7 Program Name:",null,{"$f":"'Program Profile'!B90","v":0},null,null,null,null,null,null,null,null,null,"7 Program Name:",null,{"$f":"'Branch Campus'!J80","v":0},null,null,null,null,null,null,null,null,null,"7 Program Name:",null,{"$f":"'Branch Campus'!J157","v":0},null,null,null,null,null,null,null,null,null,"7 Program Name:",null,{"$f":"'Branch Campus'!J234","v":0}]
[null,null,null,null,null,null,null,null,null,null,null,"Student:Equipment",null,null,null,null,null,null,null,null,null,null,null,"Student:Equipment",null,null,null,null,null,null,null,null,null,null,null,"Student:Equipment",null,null,null,null,null,null,null,null,null,null,null,"Student:Equipment"]
[null,"Item of Equipment",null,"Quantity",null,"Make",null,"Model",null,"Specifications",null,"Ratio",null,"Item of Equipment",null,"Quantity",null,"Make",null,"Model",null,"Specifications",null,"Ratio",null,"Item of Equipment",null,"Quantity",null,"Make",null,"Model",null,"Specifications",null,"Ratio",null,"Item of Equipment",null,"Quantity",null,"Make",null,"Model",null,"Specifications",null,"Ratio"]
[]
[]
[]
[]
[]
[]
[]
[]
[]
[]
[]
[]
[]
[]
[]
[]
[]
[]
[]
[]
[]
[]
[]
[]
[]
[]
[]
[]
[]
[]
[]
[null,"8 Program Name:",null,{"$f":"'Program Profile'!B92","v":0},null,null,null,null,null,null,null,null,null,"8 Program Name:",null,{"$f":"'Branch Campus'!J82","v":0},null,null,null,null,null,null,null,null,null,"8 Program Name:",null,{"$f":"'Branch Campus'!J159","v":0},null,null,null,null,null,null,null,null,null,"8 Program Name:",null,{"$f":"'Branch Campus'!J236","v":0}]
[null,null,null,null,null,null,null,null,null,null,null,"Student:Equipment",null,null,null,null,null,null,null,null,null,null,null,"Student:Equipment",null,null,null,null,null,null,null,null,null,null,null,"Student:Equipment",null,null,null,null,null,null,null,null,null,null,null,"Student:Equipment"]
[null,"Item of Equipment",null,"Quantity",null,"Make",null,"Model",null,"Specifications",null,"Ratio",null,"Item of Equipment",null,"Quantity",null,"Make",null,"Model",null,"Specifications",null,"Ratio",null,"Item of Equipment",null,"Quantity",null,"Make",null,"Model",null,"Specifications",null,"Ratio",null,"Item of Equipment",null,"Quantity",null,"Make",null,"Model",null,"Specifications",null,"Ratio"]
[]
[]
[]
[]
[]
[]
[]
[]
[]
[]
[]
[]
[]
[]
[]
[]
[]
[]
[]
[]
[]
[]
[]
[]
[]
[]
[]
[]
[]
[]
[]
[null,"9 Program Name:",null,{"$f":"'Program Profile'!B94","v":0},null,null,null,null,null,null,null,null,null,"9 Program Name:",null,{"$f":"'Branch Campus'!J84","v":0},null,null,null,null,null,null,null,null,null,"9 Program Name:",null,{"$f":"'Branch Campus'!J161","v":0},null,null,null,null,null,null,null,null,null,"9 Program Name:",null,{"$f":"'Branch Campus'!J238","v":0}]
[null,null,null,null,null,null,null,null,null,null,null,"Student:Equipment",null,null,null,null,null,null,null,null,null,null,null,"Student:Equipment",null,null,null,null,null,null,null,null,null,null,null,"Student:Equipment",null,null,null,null,null,null,null,null,null,null,null,"Student:Equipment"]
[null,"Item of Equipment",null,"Quantity",null,"Make",null,"Model",null,"Specifications",null,"Ratio",null,"Item of Equipment",null,"Quantity",null,"Make",null,"Model",null,"Specifications",null,"Ratio",null,"Item of Equipment",null,"Quantity",null,"Make",null,"Model",null,"Specifications",null,"Ratio",null,"Item of Equipment",null,"Quantity",null,"Make",null,"Model",null,"Specifications",null,"Ratio"]
[]
[]
[]
[]
[]
[]
[]
[]
[]
[]
[]
[]
[]
[]
[]
[]
[]
[]
[]
[]
[]
[]
[]
[]
[]
[]
[]
[]
[]
[]
[]
[null,"10 Program Name:",null,{"$f":"'Program Profile'!B96","v":0},null,null,null,null,null,null,null,null,null,"10 Program Name:",null,{"$f":"'Branch Campus'!J86","v":0},null,null,null,null,null,null,null,null,null,"10 Program Name:",null,{"$f":"'Branch Campus'!J163","v":0},null,null,null,null,null,null,null,null,null,"10 Program Name:",null,{"$f":"'Branch Campus'!J240","v":0}]
[null,null,null,null,null,null,null,null,null,null,null,"Student:Equipment",null,null,null,null,null,null,null,null,null,null,null,"Student:Equipment",null,null,null,null,null,null,null,null,null,null,null,"Student:Equipment",null,null,null,null,null,null,null,null,null,null,null,"Student:Equipment"]
[null,"Item of Equipment",null,"Quantity",null,"Make",null,"Model",null,"Specifications",null,"Ratio",null,"Item of Equipment",null,"Quantity",null,"Make",null,"Model",null,"Specifications",null,"Ratio",null,"Item of Equipment",null,"Quantity",null,"Make",null,"Model",null,"Specifications",null,"Ratio",null,"Item of Equipment",null,"Quantity",null,"Make",null,"Model",null,"Specifications",null,"Ratio"]
[]
[]
[]
[]
[]
[]
[]
[]
[]
[]
[]
[]
[]
[]
[]
[]
[]
[]
[]
[]
[]
[]
[]
[]
[]
[]
[]
[]
[]
[]
[]
[null,"11 Program Name:",null,{"$f":"'Program Profile'!B98","v":0}]
[null,null,null,null,null,null,null,null,null,null,null,"Student:Equipment"]
[null,"Item of Equipment",null,"Quantity",null,"Make",null,"Model",null,"Specifications",null,"Ratio"]
[]
[]
[]
[]
[]
[]
[]
[]
[]
[]
[]
[]
[]
[]
[]
[]
[]
[]
[]
[]
[]
[]
[]
[]
[]
[]
[]
[]
[]
[]
[]
[null,"12 Program Name:",null,{"$f":"'Program Profile'!B100","v":0}]
[null,null,null,null,null,null,null,null,null,null,null,"Student:Equipment"]
[null,"Item of Equipment",null,"Quantity",null,"Make",null,"Model",null,"Specifications",null,"Ratio"]
[]
[]
[]
[]
[]
[]
[]
[]
[]
[]
[]
[]
[]
[]
[]
[]
[]
[]
[]
[]
[]
[]
[]
[]
[]
[]
[]
[]
[]
[]
[]
[null,"13 Program Name:",null,{"$f":"'Program Profile'!B102","v":0}]
[null,null,null,null,null,null,null,null,null,null,null,"Student:Equipment"]
[null,"Item of Equipment",null,"Quantity",null,"Make",null,"Model",null,"Specifications",null,"Ratio"]
[]
[]
[]
[]
[]
[]
[]
[]
[]
[]
[]
[]
[]
[]
[]
[]
[]
[]
[]
[]
[]
[]
[]
[]
[]
[]
[]
[]
[]
[]
[]
[null,"14 Program Name:",null,{"$f":"'Program Profile'!B104","v":0}]
[null,null,null,null,null,null,null,null,null,null,null,"Student:Equipment"]
[null,"Item of Equipment",null,"Quantity",null,"Make",null,"Model",null,"Specifications",null,"Ratio"]
[]
[]
[]
[]
[]
[]
[]
[]
[]
[]
[]
[]
[]
[]
[]
[]
[]
[]
[]
[]
[]
[]
[]
[]
[]
[]
[]
[]
[]
[]
[]
[null,"15 Program Name:",null,{"$f":"'Program Profile'!B106","v":0}]
[null,null,null,null,null,null,null,null,null,null,null,"Student:Equipment"]
[null,"Item of Equipment",null,"Quantity",null,"Make",null,"Model",null,"Specifications",null,"Ratio"]
[]
[]
[]
[]
[]
[]
[]
[]
[]
[]
[]
[]
[]
[]
[]
[]
[]
[]
[]
[]
[]
[]
[]
[]
[]
[]
[]
[]
[]
[]
[]
[null,"16 Program Name:",null,{"$f":"'Program Profile'!B108","v":0}]
[null,null,null,null,null,null,null,null,null,null,null,"Student:Equipment"]
[null,"Item of Equipment",null,"Quantity",null,"Make",null,"Model",null,"Specifications",null,"Ratio"]
[]
[]
[]
[]
[]
[]
[]
[]
[]
[]
[]
[]
[]
[]
[]
[]
[]
[]
[]
[]
[]
[]
[]
[]
[]
[]
[]
[]
[]
[]
[]
[null,"17 Program Name:",null,{"$f":"'Program Profile'!B110","v":0}]
[null,null,null,null,null,null,null,null,null,null,null,"Student:Equipment"]
[null,"Item of Equipment",null,"Quantity",null,"Make",null,"Model",null,"Specifications",null,"Ratio"]
[]
[]
[]
[]
[]
[]
[]
[]
[]
[]
[]
[]
[]
[]
[]
[]
[]
[]
[]
[]
[]
[]
[]
[]
[]
[]
[]
[]
[]
[]
[]
[null,"18 Program Name:",null,{"$f":"'Program Profile'!B112","v":0}]
[null,null,null,null,null,null,null,null,null,null,null,"Student:Equipment"]
[null,"Item of Equipment",null,"Quantity",null,"Make",null,"Model",null,"Specifications",null,"Ratio"]
[]
[]
[]
[]
[]
[]
[]
[]
[]
[]
[]
[]
[]
[]
[]
[]
[]
[]
[]
[]
[]
[]
[]
[]
[]
[]
[]
[]
[]
[]
[]
[null,"19 Program Name:",null,{"$f":"'Program Profile'!B114","v":0}]
[null,null,null,null,null,null,null,null,null,null,null,"Student:Equipment"]
[null,"Item of Equipment",null,"Quantity",null,"Make",null,"Model",null,"Specifications",null,"Ratio"]
[]
[]
[]
[]
[]
[]
[]
[]
[]
[]
[]
[]
[]
[]
[]
[]
[]
[]
[]
[]
[]
[]
[]
[]
[]
[]
[]
[]
[]
[]
[]
[null,"20 Program Name:",null,{"$f":"'Program Profile'!B116","v":0}]
[null,null,null,null,null,null,null,null,null,null,null,"Student:Equipment"]
[null,"Item of Equipment",null,"Quantity",null,"Make",null,"Model",null,"Specifications",null,"Ratio"]
[]
[]
[]
[]
[]
[]
[]
[]
[]
[]
[]
[]
[]
[]
[]
[]
[]
[]
[]
[]
[]
[]
[]
[]
[]
[]
[]
[]
[]
[]
[]
[null,"21 Program Name:",null,{"$f":"'Program Profile'!B118","v":0}]
[null,null,null,null,null,null,null,null,null,null,null,"Student:Equipment"]
[null,"Item of Equipment",null,"Quantity",null,"Make",null,"Model",null,"Specifications",null,"Ratio"]
[]
[]
[]
[]
[]
[]
[]
[]
[]
[]
[]
[]
[]
[]
[]
[]
[]
[]
[]
[]
[]
[]
[]
[]
[]
[]
[]
[]
[]
[]
[]
[null,"22 Program Name:",null,{"$f":"'Program Profile'!B120","v":0}]
[null,null,null,null,null,null,null,null,null,null,null,"Student:Equipment"]
[null,"Item of Equipment",null,"Quantity",null,"Make",null,"Model",null,"Specifications",null,"Ratio"]
[]
[]
[]
[]
[]
[]
[]
[]
[]
[]
[]
[]
[]
[]
[]
[]
[]
[]
[]
[]
[]
[]
[]
[]
[]
[]
[]
[]
[]
[]
[]
[null,"23 Program Name:",null,{"$f":"'Program Profile'!B122","v":0}]
[null,null,null,null,null,null,null,null,null,null,null,"Student:Equipment"]
[null,"Item of Equipment",null,"Quantity",null,"Make",null,"Model",null,"Specifications",null,"Ratio"]
[]
[]
[]
[]
[]
[]
[]
[]
[]
[]
[]
[]
[]
[]
[]
[]
[]
[]
[]
[]
[]
[]
[]
[]
[]
[]
[]
[]
[]
[]
[]
[null,"24 Program Name:",null,{"$f":"'Program Profile'!B124","v":0}]
[null,null,null,null,null,null,null,null,null,null,null,"Student:Equipment"]
[null,"Item of Equipment",null,"Quantity",null,"Make",null,"Model",null,"Specifications",null,"Ratio"]
[]
[]
[]
[]
[]
[]
[]
[]
[]
[]
[]
[]
[]
[]
[]
[]
[]
[]
[]
[]
[]
[]
[]
[]
[]
[]
[]
[]
[]
[]
[]
[null,"25 Program Name:",null,{"$f":"'Program Profile'!B126","v":0}]
[null,null,null,null,null,null,null,null,null,null,null,"Student:Equipment"]
[null,"Item of Equipment",null,"Quantity",null,"Make",null,"Model",null,"Specifications",null,"Ratio"]
[]
[]
[]
[]
[]
[]
[]
[]
[]
[]
[]
[]
[]
[]
[]
[]
[]
[]
[]
[]
[]
[]
[]
[]
[]
[]
[]
[]
[]
[]
[]
[null,"26 Program Name:",null,{"$f":"'Program Profile'!B128","v":0}]
[null,null,null,null,null,null,null,null,null,null,null,"Student:Equipment"]
[null,"Item of Equipment",null,"Quantity",null,"Make",null,"Model",null,"Specifications",null,"Ratio"]
[]
[]
[]
[]
[]
[]
[]
[]
[]
[]
[]
[]
[]
[]
[]
[]
[]
[]
[]
[]
[]
[]
[]
[]
[]
[]
[]
[]
[]
[]
[]
[null,"27 Program Name:",null,{"$f":"'Program Profile'!B130","v":0}]
[null,null,null,null,null,null,null,null,null,null,null,"Student:Equipment"]
[null,"Item of Equipment",null,"Quantity",null,"Make",null,"Model",null,"Specifications",null,"Ratio"]
[]
[]
[]
[]
[]
[]
[]
[]
[]
[]
[]
[]
[]
[]
[]
[]
[]
[]
[]
[]
[]
[]
[]
[]
[]
[]
[]
[]
[]
[]
[]
[null,"28 Program Name:",null,{"$f":"'Program Profile'!B132","v":0}]
[null,null,null,null,null,null,null,null,null,null,null,"Student:Equipment"]
[null,"Item of Equipment",null,"Quantity",null,"Make",null,"Model",null,"Specifications",null,"Ratio"]
[]
[]
[]
[]
[]
[]
[]
[]
[]
[]
[]
[]
[]
[]
[]
[]
[]
[]
[]
[]
[]
[]
[]
[]
[]
[]
[]
[]
[]
[]
[]
[null,"29 Program Name:",null,{"$f":"'Program Profile'!B134","v":0}]
[null,null,null,null,null,null,null,null,null,null,null,"Student:Equipment"]
[null,"Item of Equipment",null,"Quantity",null,"Make",null,"Model",null,"Specifications",null,"Ratio"]
[]
[]
[]
[]
[]
[]
[]
[]
[]
[]
[]
[]
[]
[]
[]
[]
[]
[]
[]
[]
[]
[]
[]
[]
[]
[]
[]
[]
[]
[]
[]
[null,"30 Program Name:",null,{"$f":"'Program Profile'!B136","v":0}]
[null,null,null,null,null,null,null,null,null,null,null,"Student:Equipment"]
[null,"Item of Equipment",null,"Quantity",null,"Make",null,"Model",null,"Specifications",null,"Ratio"]
[]
[]
[]
[]
[]
[]
[]
[]
[]
[]
[]
[]
[]
[]
[]
[]
[]
[]
[]
[]
[]
[]
[]
[]
[]
[]
[]
[]
[]
[]
[]
["END OF EQUIPMENT - PROCEED TO NEXT WORKSHEET TAB"]

{"sheet":"Enrollment Agreement","index":12,"n_rows":59,"n_cols":13,"rows_kept":59,"cut":false,"hidden":false,"merged":[[7,1,11,8]]}
["Compliance Audit Self-Study"]
["Pennsylvania State Board of Private Licensed Schools"]
[]
["Please be sure the address for complaints sent to the Board is updated to: 607 South Drive, Floor 3E, Harrisburg, PA 17120."]
[]
[null,"Embed the school's Enrollment Agreement below."]
[null,"If multiple Enrollment Agreements are used, include a copy of each agreement."]
[]
[]
[]
[]
[]
[]
[null,"Complete the following checklist to certify that all requirements are included."]
[1,"The name and address of the school the student will be attending."]
[2,"The student's name."]
[3,"The program name as approved by the Board and identified in the school’s student information publication (catalog). "]
[4,"The number of clock hours, credit hours, or lessons and the number of weeks or months required to complete the course or program."]
[5,"The type of award the student will receive upon successful completion of the program (certificate, diploma, AST, ASB)."]
[6,"The costs for the following when applicable: "]
[null,null,"Total tuition for the program (for programs which include nonresident and resident training, the tuition"]
[null,null,"for the nonresident training, the tuition for the resident training, and the total tuition for the complete "]
[null,null,"combined program shall be stated)."]
[null,null,"Estimated costs for books and supplies (if the costs for books and supplies are included in the tuition, "]
[null,null,"this shall be clearly stated)."]
[null,null,"If interest or finance charges, or both, will be charged, the total amount of these charges shall be listed",null,null,null,null,null,null,null,null,null,"n/a"]
[null,null,"in accordance with Federal truth-in-lending and State retail installment requirements."]
[null,null,"If the school provides room or board, or both, the enrollment agreement shall specify that a separate ",null,null,null,null,null,null,null,null,null,"n/a"]
[null,null,"agreement shall be entered into for that purpose. "]
[null,null,"Other costs and charges, such as application fee, student activity fee or laboratory fees, shall be listed. ",null,null,null,null,null,null,null,null,null,"n/a"]
[7,"The terms of payment. The method and terms of payment of costs shall be clearly stated and shall comply with Federal "]
[null,"truth-in-lending and State retail installment requirements. "]
[8,"Student's enrolled start date."]
[9,"Cancellation policy (cancellation of enrollment prior to the start of classes, including refund of fees and tuition)."]
[10,"Refund policy (student withdrawal or school termination after the start of classes)."]
[11,"If employment assistance is provided, an employment guarantee disclaimer must be included. ",null,null,null,null,null,null,null,null,null,null,"n/a"]
[null,"This disclaimer shall be printed in boldface type, in at least 10-point type. "]
[12,"Complaint procedure. A statement informing students that: "]
[null,null,"There is an individual at the school to whom questions or concerns may be directed regarding the school’s "]
[null,null,"satisfying the terms of the enrollment agreement. This individual shall be identified by title. "]
[null,null,"The school is licensed or registered—as applicable—by the Pennsylvania State Board of Private Licensed Schools. "]
[null,null,"Questions or concerns that are not satisfactorily resolved by the school may be brought to the attention of the "]
[null,null,"Pennsylvania State Board of Private Licensed Schools, Division of Law Enforcement Education and Trade Schools, "]
[null,null,"Pennsylvania Department of Education, 607 South Drive, Floor 3E, Harrisburg, PA 17120."]
[13,"A statement verifying that the student has received, read, and understands the school's student information publication (catalog)."]
[14,"A statement acknowledging that the agreement is not binding until it is accepted by a representative of the school."]
[15,"An acknowledgement that the signers have received, read, and understands an exact copy of the fully signed enrollment agreement."]
[16,"An enrollment agreement shall be dated and signed by the applicant."]
[null,"If the applicant is a minor, the enrollment agreement shall be dated and signed by the parent or guardian.",null,null,null,null,null,null,null,null,null,null,"n/a"]
[null,"An enrollment agreement shall be dated and signed by a representative of the school (this will become the effective date)."]
[17,"If the enrollment agreement is longer than one side of a single sheet of paper, each side shall clearly refer to the conditions on ",null,null,null,null,null,null,null,null,null,null,"n/a"]
[null,"the other side as being part of the agreement. If more than one page is used, each page shall be numbered: "]
[null,"page 1 of X pages, page 2 of x pages and the like."]
[18,"If the program includes mandatory or optional distance education, it must be fully disclosed and transparent to the student.",null,null,null,null,null,null,null,null,null,null,"n/a"]
[19,"If the program includes mandatory or optional distance education, the technology requirements must be fully disclosed.",null,null,null,null,null,null,null,null,null,null,"n/a"]
[20,"Consumer Protection Policies and Disclosures to be provided to students during admission. ",null,null,null,null,null,null,null,null,null,null,"n/a"]
[null,"Consumer Protection Policies and Disclosures are required for CDL programs. Please refer to Policy Memo #93 to ensure all required information is included."]
[]
["END OF ENROLLMENT AGREEMENT - PROCEED TO NEXT WORKSHEET TAB"]

{"sheet":"Catalog","index":13,"n_rows":34,"n_cols":16,"rows_kept":34,"cut":false,"hidden":false,"merged":[[5,1,9,8]]}
["Compliance Audit Self-Study"]
["Pennsylvania State Board of Private Licensed Schools"]
[]
[null,"Embed the school's catalog below."]
[null,"If more than one catalog is used, include a copy of each catalog."]
[]
[]
[]
[]
[]
[]
[null,"Complete the following list, indicating the corresponding page number where the information is located, to certify that all requirements are included within the student information publication (catalog)."]
[null,null,"Found on page number:"]
[null,null,null,1,"The name and address of the school."]
[null,null,null,2,"The date of publication—may not exceed 3 years from the date of submission. "]
[null,null,null,3,"Admission requirements and procedures. "]
[null,null,null,4,"The educational objectives of the program, including the name, occupation and level for which training is provided. "]
[null,null,null,5,"The number of clock hours or credit hours of instruction of each course, as well as the number of weeks or months required to complete the course or program."]
[null,null,null,6,"The courses offered, specifying sufficiently the subjects included to identify the coverage of the program and specifying sufficiently the modality(ies) by which the courses will be offered."]
[null,null,null,null,"If a course is offered both residentially/on-ground and via distance education, both course numbers are provided in the catalog"]
[null,null,null,7,"A general description of the school’s physical facilities. "]
[null,null,null,8,"Policies relating to tardiness, absences, makeup work, conduct, termination and other rules of the school or reference to the policies in another school publication which contains the information. "]
[null,null,null,9,"The grading system. "]
[null,null,null,10,"Requirements for graduation. "]
[null,null,null,11,"A statement which clearly defines whether a certificate, diploma, AST, or ASB is awarded upon graduation. "]
[null,null,null,12,"A statement of tuition and other student charges related to the enrollment, or reference to the statement in another school publication which contains the information."]
[null,null,null,13,"A statement of the school's cancellation policy (cancellation of enrollment prior to the start of classes, including refund of fees and tuition)."]
[null,null,null,null,"A statement of the school's refund policy (student withdrawal or school termination after the start of classes)."]
[null,null,null,14,"A description of placement assistance, if available, to students and graduates. ",null,null,null,null,null,null,null,null,null,null,"n/a"]
[null,null,null,15,"A description of available student services, if provided. ",null,null,null,null,null,null,null,"n/a"]
[null,null,null,16,"A school calendar, including holidays and either beginning and ending dates of courses and programs or a statement regarding the frequency of class starting policy or reference to the calendar in another student publication which contains the information. "]
[null,null,null,17,"A statement concerning transfer of credits that clarifies that there is no guarantee that credits earned at the school will transfer to another institution."]
[]
["END OF CATALOG - PROCEED TO NEXT WORKSHEET TAB"]

{"sheet":"CDL Program","index":14,"n_rows":231,"n_cols":29,"rows_kept":231,"cut":false,"hidden":false,"merged":[[223,1,228,5],[220,0,220,1],[199,1,204,5],[199,8,204,12],[199,15,204,19],[199,22,204,26],[199,29,204,33],[209,1,214,5],[209,8,214,12],[209,15,214,19],[209,22,214,26],[209,29,214,33],[177,1,182,5],[177,8,182,12],[177,15,182,19],[177,22,182,26],[177,29,182,33],[189,1,194,5],[189,8,194,12],[189,15,194,19],[189,22,194,26],[189,29,194,33],[132,29,137,33],[167,1,172,5],[167,8,172,12],[167,15,172,19],[167,22,172,26],[167,29,172,33],[157,1,162,5],[157,8,162,12],[157,15,162,19],[157,22,162,26],[157,29,162,33],[144,1,149,5],[109,1,114,5],[109,8,114,12],[109,15,114,19],[109,22,114,26],[132,1,137,5],[132,8,137,12],[132,15,137,19],[132,22,137,26],[109,29,114,33],[118,1,123,5],[118,8,123,12],[118,15,123,19],[118,22,123,26],[118,29,123,33],[90,8,95,12],[90,15,95,19],[90,22,95,26],[90,29,95,33],[100,1,105,5],[100,8,105,12],[100,15,105,19],[100,22,105,26],[100,29,105,33],[90,1,95,5],[11,0,11,3],[20,1,25,5],[38,1,43,5],[48,1,53,5],[73,1,77,1]]}
["Compliance Audit Self-Study"]
["Pennsylvania State Board of Private Licensed Schools"]
[]
["Effective February 7, 2022, all Private Licensed Schools offering entry-level driver training for commercial truck driver programs must be registered with the Federal Motor Carrier Safety Administration (FMCSA) as an Entry-Level Driver Training (ELDT) provider "]
["and must attest that all program requirements have been met in accordance with 49 CFR § 380.  "]
[]
["If at any time either FMCSA, PA Department of Transportation, or the Board determines that a training provider does not meet all applicable requirements, the provider may be removed the FMCSA list of approved training providers and will be required by the Board "]
["to suspend instruction until the requirements are met."]
[]
["Effective March 1, 2022, in addition to all other State Board of Private Licensed School License/Registration Renewal application requirements, the items requested on the CDL Program worksheet must be submitted by schools offering commercial truck driver training programs."]
[]
["Private Licensed Schools Memorandum #93 Commercial Truck Driving Programs"]
[]
["FMCSA ELDT Training Provider Registry"]
[]
["FMCSA ELDT Training Provider Registry (TRP) ID #"]
[]
[]
["Evidence of registration (embed document below)."]
[]
[]
[]
[]
[]
[]
[]
[]
["Administration"]
[]
["Name of school administrator or personnel with a minimum of 2 years’ experience with Commercial Driver Training programs or other involvement in the training of Commercial Drivers."]
[]
[]
[]
[null,"Email address:"]
[]
[]
["Evidence of 2 or more years of experience (embed documents below)."]
[]
[]
[]
[]
[]
[]
[]
[]
["List all Commercial Driver Training programs/facilities with which the individual has been affiliated."]
["Embed a document if the information extends beyond the provided text box."]
[]
[]
[]
[]
[]
[]
[]
[]
["Name of the person who is responsible as the Designated Employer Representative in accordance with Federal Motor Carrier Safety Regulations."]
[]
[]
[]
[null,"Email address:"]
[]
[]
["Name of the qualified staff member who has received the supervisor drug and alcohol training in accordance with 49 CFR 382.603."]
[]
[]
[]
[null,"Email address:"]
[]
[]
["Signed statement by the owner/director that the school agrees to abide by all applicable US Department of Transportation Federal Motor Carrier Safety Regulations (embed document below)."]
["The attestation must be signed biennially at the time of licensure/registration renewal or upon a change in Owner/Director."]
["CDL Owner/Director Attestation"]
[]
[]
[]
[]
[]
[]
[]
["Instructor Qualifications"]
[]
[null,"> > > scroll right to continue to add additional instructors > > >",null,null,null,null,null,null,"> > > scroll right to continue to add additional instructors > > >",null,null,null,null,null,null,"> > > scroll right to continue to add additional instructors > > >",null,null,null,null,null,null,"> > > scroll right to continue to add additional instructors > > >"]
[]
["1. Instructor's name:",null,null,null,null,null,null,"2. Instructor's name:",null,null,null,null,null,null,"3. Instructor's name:",null,null,null,null,null,null,"4. Instructor's name:",null,null,null,null,null,null,"5. Instructor's name:"]
[]
[]
[]
["1a. Evidence of a minimum of 2 years’ working experience with a Commercial Driver’s License as a driver ",null,null,null,null,null,null,"2a. Evidence of a minimum of 2 years’ working experience with a Commercial Driver’s License as a driver ",null,null,null,null,null,null,"3a. Evidence of a minimum of 2 years’ working experience with a Commercial Driver’s License as a driver ",null,null,null,null,null,null,"4a. Evidence of a minimum of 2 years’ working experience with a Commercial Driver’s License as a driver ",null,null,null,null,null,null,"5a. Evidence of a minimum of 2 years’ working experience with a Commercial Driver’s License as a driver "]
["(embed documents below).",null,null,null,null,null,null,"(embed documents below).",null,null,null,null,null,null,"(embed documents below).",null,null,null,null,null,null,"(embed documents below).",null,null,null,null,null,null,"(embed documents below)."]
[]
[]
[]
[]
[]
[]
[]
[]
["1b. Valid and unexpired Commercial Driver’s License of the same class of commercial motor vehicle as that which the ",null,null,null,null,null,null,"2b. Valid and unexpired Commercial Driver’s License of the same class of commercial motor vehicle as that which the ",null,null,null,null,null,null,"3b. Valid and unexpired Commercial Driver’s License of the same class of commercial motor vehicle as that which the ",null,null,null,null,null,null,"4b. Valid and unexpired Commercial Driver’s License of the same class of commercial motor vehicle as that which the ",null,null,null,null,null,null,"5b. Valid and unexpired Commercial Driver’s License of the same class of commercial motor vehicle as that which the "]
["instructor will provide instruction to students (embed document below).",null,null,null,null,null,null,"instructor will provide instruction to students (embed document below).",null,null,null,null,null,null,"instructor will provide instruction to students (embed document below).",null,null,null,null,null,null,"instructor will provide instruction to students (embed document below).",null,null,null,null,null,null,"instructor will provide instruction to students (embed document below)."]
[]
[]
[]
[]
[]
[]
[]
[]
["1c. Unexpired medical examiner certificate (embed document below).",null,null,null,null,null,null,"2c. Unexpired medical examiner certificate (embed document below).",null,null,null,null,null,null,"3c. Unexpired medical examiner certificate (embed document below).",null,null,null,null,null,null,"4c. Unexpired medical examiner certificate (embed document below).",null,null,null,null,null,null,"5c. Unexpired medical examiner certificate (embed document below)."]
[]
[]
[]
[]
[]
[]
[]
[]
["1e. Current Motor Vehicle Report (embed document below).",null,null,null,null,null,null,"2e. Current Motor Vehicle Report (embed document below).",null,null,null,null,null,null,"3e. Current Motor Vehicle Report (embed document below).",null,null,null,null,null,null,"4e. Current Motor Vehicle Report (embed document below).",null,null,null,null,null,null,"5e. Current Motor Vehicle Report (embed document below)."]
[]
[]
[]
[]
[]
[]
[]
[]
["1f. Date of most recent drug test:",null,null,null,null,null,null,"2f. Date of most recent drug test:",null,null,null,null,null,null,"3f. Date of most recent drug test:",null,null,null,null,null,null,"4f. Date of most recent drug test:",null,null,null,null,null,null,"5f. Date of most recent drug test:"]
[]
[]
[]
["1g. Evidence of registration with the Federal Motor Carrier Safety Administration Drug and Alcohol Clearing House ",null,null,null,null,null,null,"2g. Evidence of registration with the Federal Motor Carrier Safety Administration Drug and Alcohol Clearing House ",null,null,null,null,null,null,"3g. Evidence of registration with the Federal Motor Carrier Safety Administration Drug and Alcohol Clearing House ",null,null,null,null,null,null,"4g. Evidence of registration with the Federal Motor Carrier Safety Administration Drug and Alcohol Clearing House ",null,null,null,null,null,null,"5g. Evidence of registration with the Federal Motor Carrier Safety Administration Drug and Alcohol Clearing House "]
["(embed document below).",null,null,null,null,null,null,"(embed document below).",null,null,null,null,null,null,"(embed document below).",null,null,null,null,null,null,"(embed document below).",null,null,null,null,null,null,"(embed document below)."]
[]
[]
[]
[]
[]
[]
[]
[]
["Equipment"]
[]
["Description of the equipment maintenance program and how it impacts student training."]
["Embed a document if the information extends beyond the provided text box."]
[]
[]
[]
[]
[]
[]
[]
[]
[null,"> > > scroll right to continue to add additional tractors/vehicles > > >",null,null,null,null,null,null,"> > > scroll right to continue to add additional tractors/vehicles > > >",null,null,null,null,null,null,"> > > scroll right to continue to add additional tractors/vehicles > > >",null,null,null,null,null,null,"> > > scroll right to continue to add additional tractors/vehicles > > >"]
[]
["1. Tractor/Vehicle: year, make, model, mileage, automatic or manual transmission, synchronized or unsynchronized ",null,null,null,null,null,null,"2. Tractor/Vehicle: year, make, model, mileage, automatic or manual transmission, synchronized or unsynchronized ",null,null,null,null,null,null,"3. Tractor/Vehicle: year, make, model, mileage, automatic or manual transmission, synchronized or unsynchronized ",null,null,null,null,null,null,"4. Tractor/Vehicle: year, make, model, mileage, automatic or manual transmission, synchronized or unsynchronized ",null,null,null,null,null,null,"5. Tractor/Vehicle: year, make, model, mileage, automatic or manual transmission, synchronized or unsynchronized "]
["transmission, airbrake, number of axels, day/sleeper cab; as well as any additional descriptors.",null,null,null,null,null,null,"transmission, airbrake, number of axels, day/sleeper cab; as well as any additional descriptors.",null,null,null,null,null,null,"transmission, airbrake, number of axels, day/sleeper cab; as well as any additional descriptors.",null,null,null,null,null,null,"transmission, airbrake, number of axels, day/sleeper cab; as well as any additional descriptors.",null,null,null,null,null,null,"transmission, airbrake, number of axels, day/sleeper cab; as well as any additional descriptors."]
["Embed a document if the information extends beyond the provided text box.",null,null,null,null,null,null,"Embed a document if the information extends beyond the provided text box.",null,null,null,null,null,null,"Embed a document if the information extends beyond the provided text box.",null,null,null,null,null,null,"Embed a document if the information extends beyond the provided text box.",null,null,null,null,null,null,"Embed a document if the information extends beyond the provided text box."]
[]
[]
[]
[]
[]
[]
[]
[]
["1a. Evidence of ownership or lease agreement that includes the owner’s/lessor’s name and contact information ",null,null,null,null,null,null,"2a. Evidence of ownership or lease agreement that includes the owner’s/lessor’s name and contact information ",null,null,null,null,null,null,"3a. Evidence of ownership or lease agreement that includes the owner’s/lessor’s name and contact information ",null,null,null,null,null,null,"4a. Evidence of ownership or lease agreement that includes the owner’s/lessor’s name and contact information ",null,null,null,null,null,null,"5a. Evidence of ownership or lease agreement that includes the owner’s/lessor’s name and contact information "]
["(embed document below).",null,null,null,null,null,null,"(embed document below).",null,null,null,null,null,null,"(embed document below).",null,null,null,null,null,null,"(embed document below).",null,null,null,null,null,null,"(embed document below)."]
[]
[]
[]
[]
[]
[]
[]
[]
["1b. Evidence of insurance to include the insurer’s name, address, contact information, policy type, policy number and ",null,null,null,null,null,null,"2b. Evidence of insurance to include the insurer’s name, address, contact information, policy type, policy number and ",null,null,null,null,null,null,"3b. Evidence of insurance to include the insurer’s name, address, contact information, policy type, policy number and ",null,null,null,null,null,null,"4b. Evidence of insurance to include the insurer’s name, address, contact information, policy type, policy number and ",null,null,null,null,null,null,"5b. Evidence of insurance to include the insurer’s name, address, contact information, policy type, policy number and "]
["expiration date (embed document below).",null,null,null,null,null,null,"expiration date (embed document below).",null,null,null,null,null,null,"expiration date (embed document below).",null,null,null,null,null,null,"expiration date (embed document below).",null,null,null,null,null,null,"expiration date (embed document below)."]
[]
[]
[]
[]
[]
[]
[]
[]
[null,"> > > scroll right to continue to add additional trailers > > >",null,null,null,null,null,null,"> > > scroll right to continue to add additional trailers > > >",null,null,null,null,null,null,"> > > scroll right to continue to add additional trailers > > >",null,null,null,null,null,null,"> > > scroll right to continue to add additional trailers > > >"]
[]
["1. Trailer: year, make, type, number of axels, length; as well as any additional descriptors.",null,null,null,null,null,null,"2. Trailer: year, make, type, number of axels, length; as well as any additional descriptors.",null,null,null,null,null,null,"3. Trailer: year, make, type, number of axels, length; as well as any additional descriptors.",null,null,null,null,null,null,"4. Trailer: year, make, type, number of axels, length; as well as any additional descriptors.",null,null,null,null,null,null,"5. Trailer: year, make, type, number of axels, length; as well as any additional descriptors."]
["Embed a document if the information extends beyond the provided text box.",null,null,null,null,null,null,"Embed a document if the information extends beyond the provided text box.",null,null,null,null,null,null,"Embed a document if the information extends beyond the provided text box.",null,null,null,null,null,null,"Embed a document if the information extends beyond the provided text box.",null,null,null,null,null,null,"Embed a document if the information extends beyond the provided text box."]
[]
[]
[]
[]
[]
[]
[]
[]
["1a. Evidence of ownership or lease agreement that includes the owner’s/lessor’s name and contact information ",null,null,null,null,null,null,"2a. Evidence of ownership or lease agreement that includes the owner’s/lessor’s name and contact information ",null,null,null,null,null,null,"3a. Evidence of ownership or lease agreement that includes the owner’s/lessor’s name and contact information ",null,null,null,null,null,null,"4a. Evidence of ownership or lease agreement that includes the owner’s/lessor’s name and contact information ",null,null,null,null,null,null,"5a. Evidence of ownership or lease agreement that includes the owner’s/lessor’s name and contact information "]
["(embed document below).",null,null,null,null,null,null,"(embed document below).",null,null,null,null,null,null,"(embed document below).",null,null,null,null,null,null,"(embed document below).",null,null,null,null,null,null,"(embed document below)."]
[]
[]
[]
[]
[]
[]
[]
[]
["1b. Evidence of insurance to include the insurer’s name, address, contact information, policy type, policy number and ",null,null,null,null,null,null,"2b. Evidence of insurance to include the insurer’s name, address, contact information, policy type, policy number and ",null,null,null,null,null,null,"3b. Evidence of insurance to include the insurer’s name, address, contact information, policy type, policy number and ",null,null,null,null,null,null,"4b. Evidence of insurance to include the insurer’s name, address, contact information, policy type, policy number and ",null,null,null,null,null,null,"5b. Evidence of insurance to include the insurer’s name, address, contact information, policy type, policy number and "]
["expiration date (embed document below).",null,null,null,null,null,null,"expiration date (embed document below).",null,null,null,null,null,null,"expiration date (embed document below).",null,null,null,null,null,null,"expiration date (embed document below).",null,null,null,null,null,null,"expiration date (embed document below)."]
[]
[]
[]
[]
[]
[]
[]
[]
["Program"]
[]
["The program must be of a sufficient length to enable the training provider to deliver the minimum required training based upon the stated objectives and stated purpose of the program to be approved. "]
["Justification of the number of program hours is necessary for an indication of how the program compares with other industry training programs and how the program sufficiently achieves the stated educational objectives of the program."]
["Please refer to Memo #93 to ensure all requirements included."]
[]
[null,"Embed the completed CDL FMCSA Bridge Worksheets."]
[]
[]
[]
[]
[]
[]
[]
["END OF CDL PROGRAM - PROCEED TO NEXT WORKSHEET TAB"]

{"sheet":"Advertising","index":15,"n_rows":124,"n_cols":3,"rows_kept":124,"cut":false,"hidden":false,"merged":[[66,2,71,8],[83,2,83,6],[63,2,63,6],[73,2,73,6],[76,2,81,8],[116,2,121,8],[103,2,103,6],[106,2,111,8],[113,2,113,6],[86,2,91,8],[93,2,93,6],[96,2,101,8],[7,2,7,6],[17,2,17,6],[19,2,19,6],[33,2,33,6],[36,2,41,8],[9,2,9,6],[23,2,23,6],[11,2,11,6],[13,2,13,6],[15,2,15,6],[56,2,61,8],[43,2,43,6],[46,2,51,8],[53,2,53,6],[26,2,31,8]]}
["Compliance Audit Self-Study"]
["Pennsylvania State Board of Private Licensed Schools"]
[]
["Please list all forms of advertising the school currently utilizes. Samples must be embedded when applicable. "]
[]
["Include the web address of all social media and online advertising."]
[]
[null,"Catalog:"]
[]
[null,"Website:"]
[]
[null,"Facebook:"]
[]
[null,"Twitter:"]
[]
[null,"Instagram:"]
[]
[null,"Other:"]
[]
[null,"Other:"]
[]
["Include representation of all other advertising (i.e. brochures, print media, TV, billboards, etc.)."]
[]
[null,"Type of advertising:"]
[]
[null,null,"Embed document(s)."]
[]
[]
[]
[]
[]
[]
[]
[null,"Type of advertising:"]
[]
[null,null,"Embed document(s)."]
[]
[]
[]
[]
[]
[]
[]
[null,"Type of advertising:"]
[]
[null,null,"Embed document(s)."]
[]
[]
[]
[]
[]
[]
[]
[null,"Type of advertising:"]
[]
[null,null,"Embed document(s)."]
[]
[]
[]
[]
[]
[]
[]
[null,"Type of advertising:"]
[]
[null,null,"Embed document(s)."]
[]
[]
[]
[]
[]
[]
[]
[null,"Type of advertising:"]
[]
[null,null,"Embed document(s)."]
[]
[]
[]
[]
[]
[]
[]
[null,"Type of advertising:"]
[]
[null,null,"Embed document(s)."]
[]
[]
[]
[]
[]
[]
[]
[null,"Type of advertising:"]
[]
[null,null,"Embed document(s)."]
[]
[]
[]
[]
[]
[]
[]
[null,"Type of advertising:"]
[]
[null,null,"Embed document(s)."]
[]
[]
[]
[]
[]
[]
[]
[null,"Type of advertising:"]
[]
[null,null,"Embed document(s)."]
[]
[]
[]
[]
[]
[]
[]
["END OF ADVERTISING - PROCEED TO NEXT WORKSHEET TAB"]

{"sheet":"Student Records","index":16,"n_rows":50,"n_cols":6,"rows_kept":50,"cut":false,"hidden":false,"merged":[[42,1,47,3],[10,1,15,13],[26,1,31,3],[34,1,39,3]]}
["Compliance Audit Self-Study"]
["Pennsylvania State Board of Private Licensed Schools"]
[]
["Annual Consolidation of Academic Transcripts"]
["In accordance with 22 Pa. Code § 73.22a, schools are mandated to annually consolidate copies of all transcripts of academic performance for all students who have graduated, terminated or withdrawn during the previous calendar year. "]
["Transcripts of academic performance, for each year, are to be stored separately - with each transcript stored as an individual PDF file."]
[]
[null,"By checking this box, the school certifies that it annually consolidates transcripts in accordance with 22 Pa. Code § 73.22a."]
[]
[null,"Please provide a narrative to describe how records are consolidated annually."]
[]
[]
[]
[]
[]
[]
[]
["During the visit, student records will be reviewed for compliance. Records will be randomly selected the day of the visit. "]
[]
[null,"Embed student lists as requested, to include students at the main campus, as well as branch campuses."]
[null,"Provide the following for each student: program enrolled, location enrolled (if Branch campus), start date, and last date attended (if graduated, withdrawn, terminated, or currently on leave of absence)."]
[]
[null,"Maintain all student records from enrollment through graduation (or last day attended); including a financial ledger detailing charges and payments, evidence that the student met admission requirements, "]
[null,"evidence that graduates have met graduation requirements, and demonstration of refund calculations and evidence of refund payment in the case of withdrawals."]
[]
[null,"Embed current student list:"]
[]
[null,null,null,null,null,"The Board Administrator will review the student's admissions documents, "]
[null,null,null,null,null,"enrollment agreement, financial record, and current transcript/grading documents. "]
[null,null,null,null,null,"Know that Board staff may request additional student information and/or records as deemed necessary."]
[]
[]
[]
[null,"Embed graduate student list for students who have graduated in the last two years:"]
[]
[]
[null,null,null,null,null,"The Board Administrator will review the student's final transcript and the student's final earned award (certificate, diploma, degree)."]
[null,null,null,null,null,"Know that Board staff may request additional student information and/or records as deemed necessary."]
[]
[]
[]
[null,"Embed withdrawn or terminated student list for students who have withdrawn or were terminated by the school in the last two years:"]
[]
[null,null,null,null,null,"The Board Administrator will review the student's date of withdrawal, "]
[null,null,null,null,null,"the percentage of the program completed, the refunded amount (if applicable), "]
[null,null,null,null,null,"when the refund was provided, and the student's final transcript. "]
[null,null,null,null,null,"Know that Board staff may request additional student information and/or records as deemed necessary."]
[]
[]
["END OF STUDENT RECORDS - PROCEED TO NEXT WORKSHEET TAB"]

{"sheet":"Documents","index":17,"n_rows":187,"n_cols":1,"rows_kept":187,"cut":false,"hidden":false,"merged":[[172,1,176,6],[180,2,184,2],[118,1,122,6],[126,2,130,2],[136,1,140,6],[144,2,148,2],[154,1,158,6],[162,2,166,2],[108,2,112,2],[10,1,14,6],[18,2,22,2],[28,1,32,6],[36,2,40,2],[46,1,50,6],[54,2,58,2],[64,1,68,6],[72,2,76,2],[82,1,86,6],[90,2,94,2],[100,1,104,6]]}
["Compliance Audit Self-Study"]
["Pennsylvania State Board of Private Licensed Schools"]
[]
["Additional material may not be required.  However, this space is available to allow you to submit additional documentation if needed. "]
["Please do not submit large additional documentation files unless they are clearly needed."]
[]
["Type of document:"]
[]
["Reason for submitting:"]
[]
[]
[]
[]
[]
[]
[]
["Embed document below:"]
[]
[]
[]
[]
[]
[]
[]
["Type of document:"]
[]
["Reason for submitting:"]
[]
[]
[]
[]
[]
[]
[]
["Embed document below:"]
[]
[]
[]
[]
[]
[]
[]
["Type of document:"]
[]
["Reason for submitting:"]
[]
[]
[]
[]
[]
[]
[]
["Embed document below:"]
[]
[]
[]
[]
[]
[]
[]
["Type of document:"]
[]
["Reason for submitting:"]
[]
[]
[]
[]
[]
[]
[]
["Embed document below:"]
[]
[]
[]
[]
[]
[]
[]
["Type of document:"]
[]
["Reason for submitting:"]
[]
[]
[]
[]
[]
[]
[]
["Embed document below:"]
[]
[]
[]
[]
[]
[]
[]
["Type of document:"]
[]
["Reason for submitting:"]
[]
[]
[]
[]
[]
[]
[]
["Embed document below:"]
[]
[]
[]
[]
[]
[]
[]
["Type of document:"]
[]
["Reason for submitting:"]
[]
[]
[]
[]
[]
[]
[]
["Embed document below:"]
[]
[]
[]
[]
[]
[]
[]
["Type of document:"]
[]
["Reason for submitting:"]
[]
[]
[]
[]
[]
[]
[]
["Embed document below:"]
[]
[]
[]
[]
[]
[]
[]
["Type of document:"]
[]
["Reason for submitting:"]
[]
[]
[]
[]
[]
[]
[]
["Embed document below:"]
[]
[]
[]
[]
[]
[]
[]
["Type of document:"]
[]
["Reason for submitting:"]
[]
[]
[]
[]
[]
[]
[]
["Embed document below:"]
[]
[]
[]
[]
[]
[]
[]
["END OF DOCUMENTS - PROCEED TO NEXT WORKSHEET TAB"]

{"sheet":"Submission","index":18,"n_rows":58,"n_cols":8,"rows_kept":58,"cut":false,"hidden":false,"merged":[[20,1,20,4],[21,1,21,2],[22,1,22,3],[23,1,23,3]]}
["Compliance Audit Self-Study"]
["Pennsylvania State Board of Private Licensed Schools"]
[]
["Do not attempt to unlock or modify this application.  You will be required to submit a new application if the submitted application is unlocked, unprotected, edited, or modified in any way."]
["If you experience issues with the application or require assistance, call the Division at (717)783-8228."]
[]
["Board staff communicates with school personnel during the audit process and not any external consultants contracted to assist with the process."]
[]
["The Pennsylvania Department of Education, Division of Law Enforcement Education and Trade Schools, on behalf of the State Board of Private Licensed Schools, "]
["conducts compliance audits and site visits of licensed/registered schools, remote sites, and branch sites to verify compliance with statute, regulations, and Board policies."]
[]
["Complete this self-study in its entirety and submit within five business days prior to the school's scheduled compliance audit. "]
[]
["Compliance Audits will now be completed by the school submitting the Compliance Audit Self-Study, in addition to either a virtual or in-person site visit."]
[]
["If a virtual site visit is conducted, a follow-up in-person physical site visit may be conducted."]
[]
["IMPORTANT - PLEASE READ"]
[]
["Carefully review the Statute, Regulations, and Board Policy Memos at:"]
[null,"Private Licensed Schools Act 174 of 1986"]
[null,"Act 110 of 2019"]
[null,"22 Pa. Code Chapter 73"]
[null,"Board Policy Memos"]
[]
["File Naming Conventions"]
[null,"Begin the file name with the school name or abbreviation - if multiple campuses, note location - followed by the name or abbreviation of the program name."]
[null,"Do not use punctuation in the file name.  "]
[null,"NOTE:  When resubmitting revisions to the application, it is absolutely essential to use the exact same filename.  "]
[null,"NOTE:  When resubmitting revisions to the application, it is absolutely essential that the same registered user upload the revised application to SharePoint."]
[null,"Do not change the filename in any way.  Do not even add a number or date to indicate a new version."]
[]
["SharePoint Submission"]
[]
["Licensed/Registered schools are expected to submit applications using the 'REGISTERED USER' option on SharePoint."]
[]
["SharePoint site users must be registered with a PA Login: ",null,null,null,null,null,"Register New PA Login"]
["Keystone Logins cannot be used to gain access to or log into the SharePoint site. "]
[]
["If this is your first time using the 'Registered User' option, once you have created your PA Login account, you must request access to the PLS SharePoint site."]
["When requesting access, please be sure to indicate the individual's name, username, and email associated with the PA Login."]
["To request access, or for general technical assistance, please email: ",null,null,null,null,null,null,"RA-PLS@pa.gov"]
[]
[null,"1.   Go to:","SharePoint Submission Site"]
[null,"2.   Registered User Application Submission"]
[null,"3.   Enter your PA Login username"]
[null,"4.   Enter your PA Login password"]
[null,"5.   Select 'Add document' and check the box 'Add as a new version to existing files'"]
[null,"6.   Select 'Choose File' and select the file from your own drive.  Click 'OK'."]
[null,"7.  Under 'Content Type', select 'Other Approvals'."]
[null,"8.  Enter ALL OTHER INFORMATION as requested and click save."]
[null,null,"*You will now be able to view and independently confirm that your application has been successfully submitted."]
[]
[null,"NOTE:  Failure to enter ALL OTHER INFORMATION will result in your application not being submitted."]
[]
[null,"NOTE:  When resubmitting a revised application, it is absolutely essential to use the exact same filename as the original application."]
[]
["END OF SUBMISSION - PLEASE SUBMIT YOUR APPLICATION ACCORDINGLY"]